{"text_format":"1","workbook":"xlsx","n_sheets":2,"sheets":["Pasiūlymas","Subtiekėjai ir priedai"],"not_rendered":{"charts":0,"images":0,"macros":1,"external_links":0,"defined_names":0,"comments":0,"pivot_tables":0},"unopened":[],"bounds":{"document_bytes":16777216,"sheet_cells":100000,"rows_first":2000,"rows_last":500,"rows_between":2000,"halvings":0,"cell_chars":16384,"cell_head_chars":4096},"cells_cut":0,"cells_raw":0,"read":"whole","date_system":"1900"}

{"sheet":"Pasiūlymas","index":0,"n_rows":1855,"n_cols":7,"rows_kept":1855,"cut":false,"hidden":false,"merged":[[27,0,27,5],[28,0,28,5],[24,0,24,5],[25,0,25,5],[26,0,26,5],[18,0,18,1],[18,2,18,5],[23,0,23,5],[19,0,19,1],[20,0,20,1],[19,2,19,5],[20,2,20,5],[22,0,22,5],[29,0,29,2],[29,3,29,5],[11,0,11,1],[11,2,11,5],[12,0,12,1],[12,2,12,5],[13,0,13,1],[13,2,13,5],[14,0,14,1],[14,2,14,5],[15,0,15,1],[15,2,15,5],[16,0,16,1],[16,2,16,5],[17,0,17,1],[17,2,17,5]]}
[]
["PIRKIMO SĄLYGŲ PRIEDAS \"PASIŪLYMŲ FORMA\""]
[]
["VIENKARTINĖS/PAGALBINĖS MED. PRIEMONĖS NE PER CPO"]
[]
["Kam:","VšĮ LSMU Kauno ligoninė"]
[]
["Data:","2022 04 27"]
["Nr.:","2022-016"]
["Vieta:","Vilnius"]
[]
["Tiekėjo pavadinimas / Ūkio subjektų grupės nariai:",null,"UAB \"B.Braun Medical\""]
["Tiekėjo kodas (-ai):",null,111551739]
["Tiekėjo adresas (-ai):",null,"Viršuliškių skg. 34-1, LT-05132 Vilnius"]
["Tiekėjo PVM mokėtojo kodas(-ai):",null,"LT115517314"]
["Tiekėjo / Ūkio subjektų grupės atsakingo partnerio sąskaitos numeris, banko pavadinimas ir banko kodas (-ai):",null,"A/s LT617044060001097040, AB “SEB bankas”, kodas 70440"]
["Asmens atsakingo už pasiūlymą vardas, pavardė:",null,"Pardavimų vadybininkas Vincas Vaitiekūnas"]
["Asmens atsakingo už pasiūlymą telefono numeris, el. pašto adresas:",null,"8 5 237 43 33, vincas.vaitiekunas@bbraun.com ; office.lt@bbraun.com"]
["Tiekėjo / Ūkio subjektų grupės, laimėjimo atveju, pasirašančio sutartį asmens vardas, pavardė, pareigos:",null,"Direktorius Kęstutis Liauba"]
["Tiekėjo / Ūkio subjektų grupės, laimėjimo atveju, už sutarties vykdymą atsakingo asmens vardas, pavardė, telefono numeris, elektroninio pašto adresas:",null,"Tiekimo vadybininkė Odeta Muralytė, 8 5 237 43 33, odeta.muralyte@bbraun.com; office.lt@bbraun.com"]
["(1) Tiekėjo / Ūkio subjektų grupės narių, (2) ūkio subjektų, kurių pajėgumais remiamasi, ir (3) jei pašalinimo pagrindai taikomi visiems subtiekėjams - subtiekėjų, kolegialaus priežiūros organo (Stebėtojų tarybos) ir (ar) kolegialaus valdymo organo (Valdybos) narių sąrašas (jei sudaryta) ir (ar) asmuo, kuriam suteikti VPĮ 46 str. 2 d. 2 p. numatyti įgaliojimai",null,"1. Juha Seppo Huhtala\n2. Voitto Olavi Pajulehto\n3. Mia Ulrika Eklund",null,null,null,{"$f":"IF((SUMPRODUCT(--(C21=\"\"))>0), \"Privaloma užpildyti, kai taikomi pašalinimo pagrindai\", \"\")","v":""}]
[]
["Tiekėjo patvirtinimai:"]
["1. Šiuo pasiūlymu pažymime, kad sutinkame su visomi pirkimo sąlygomis, nustatytomis:"]
["1.1. viešojo pirkimo dokumentuose"]
["1.2. kituose pirkimo dokumentuose (jų paaiškinimuose, papildymuose)."]
["2. Patvirtiname, kad informacija ir duomenys, pateikti pasiūlyme, yra teisingi ir apima viską, ko reikia tinkamam sutarties įvykdymui"]
["3. Patvirtiname, kad jei pasiūlyme nenurodyti kolegialaus priežiūros/valdymo organų nariai, šie organai juridiniuose asmenyse nėra sudaryti (taikoma, kai pirkimo dokumentuose nustatyti pašalinimo pagrindai)."]
["4. Pasiūlymas galioja iki termino, nustatyto pirkimo dokumentuose."]
["5. Tais atvejais, kai pagal galiojančius teisės aktus tiekėjui nereikia mokėti PVM, jis nurodo priežastis, dėl kurių PVM nemoka:"]
["6. Tiekėjas kainas pateikia, nurodydamas ne daugiau skaičių po kablelio, nei leidžiama pirkimo dokumentuose."]
["1. DALIS","AKUŠERINIS RINKINYS GIMDYVĖMS"]
[]
["Tiekėjo pasiūlymas:"]
["Nr.","Pavadinimas","Kiekis","Mato vienetas","Kaina be PVM, Eur","Suma be PVM, Eur","Siūlomi produktai"]
["1.","Akušerinis rinkinys gimdyvėms"]
["1.1.","Akušerinis rinkinys gimdyvėms",800,"vnt",null,{"$f":"IF(ISBLANK(E37),\"\", PRODUCT(C37,E37))","v":""}]
[null,null,null,null,"Suma be PVM",{"$f":"IF(F37=\"\",\"\",SUM(F37:F37))","v":""},{"$f":"IF(F37=\"\",\"Neužpildytos visos objektų kainos\",\"\")","v":"Neužpildytos visos objektų kainos"}]
[null,null,null,null,"PVM suma"]
[null,null,null,null,"Suma su PVM",{"$f":"IF(ISBLANK(F39), \"\", SUM(F38:F39))","v":""}]
[]
[]
[]
["2. DALIS","ATSIURBIMO KATETERIAI SU PIRŠTO KONTROLE, CH 12"]
[]
["Tiekėjo pasiūlymas:"]
["Nr.","Pavadinimas","Kiekis","Mato vienetas","Kaina be PVM, Eur","Suma be PVM, Eur","Siūlomi produktai"]
["2.","Atsiurbimo kateteriai su piršto kontrole, CH 12"]
["2.1.","Atsiurbimo kateteriai su piršto kontrole, CH 12",2700,"vnt",null,{"$f":"IF(ISBLANK(E49),\"\", PRODUCT(C49,E49))","v":""}]
[null,null,null,null,"Suma be PVM",{"$f":"IF(F49=\"\",\"\",SUM(F49:F49))","v":""},{"$f":"IF(F49=\"\",\"Neužpildytos visos objektų kainos\",\"\")","v":"Neužpildytos visos objektų kainos"}]
[null,null,null,null,"PVM suma"]
[null,null,null,null,"Suma su PVM",{"$f":"IF(ISBLANK(F51), \"\", SUM(F50:F51))","v":""}]
[]
[]
[]
["3. DALIS","MEKONIJAUS SIURBTUVAI"]
[]
["Tiekėjo pasiūlymas:"]
["Nr.","Pavadinimas","Kiekis","Mato vienetas","Kaina be PVM, Eur","Suma be PVM, Eur","Siūlomi produktai"]
["3.","Mekonijaus siurbtuvai"]
["3.1.","Mekonijaus atsiurbėjas skaidrus",60,"vnt",null,{"$f":"IF(ISBLANK(E61),\"\", PRODUCT(C61,E61))","v":""}]
[null,null,null,null,"Suma be PVM",{"$f":"IF(F61=\"\",\"\",SUM(F61:F61))","v":""},{"$f":"IF(F61=\"\",\"Neužpildytos visos objektų kainos\",\"\")","v":"Neužpildytos visos objektų kainos"}]
[null,null,null,null,"PVM suma"]
[null,null,null,null,"Suma su PVM",{"$f":"IF(ISBLANK(F63), \"\", SUM(F62:F63))","v":""}]
[]
[]
[]
["4. DALIS","VAKUUMINĖ  ŽAIZDŲ DRENAVIMO SISTEMA, 200 ML (±10ML)"]
[]
["Tiekėjo pasiūlymas:"]
["Nr.","Pavadinimas","Kiekis","Mato vienetas","Kaina be PVM, Eur","Suma be PVM, Eur","Siūlomi produktai"]
["4.","Vakuuminė  žaizdų drenavimo sistema, 200 ml (±10ml)"]
["4.1.","Vakuuminė  žaizdų drenavimo sistema, 200 ml (±10ml)",25,"vnt",null,{"$f":"IF(ISBLANK(E73),\"\", PRODUCT(C73,E73))","v":""}]
["4.2.","Vakuuminė  žaizdų drenavimo sistema 300 ml (±100ml)",130,"vnt",null,{"$f":"IF(ISBLANK(E74),\"\", PRODUCT(C74,E74))","v":""}]
[null,null,null,null,"Suma be PVM",{"$f":"IF((SUMPRODUCT(--(F73:F74=\"\"))>0), \"\", SUM(F73:F74))","v":""},{"$f":"IF((SUMPRODUCT(--(F73:F74=\"\"))>0), \"Neužpildytos visų objektų kainos\", \"\")","v":"Neužpildytos visų objektų kainos"}]
[null,null,null,null,"PVM suma"]
[null,null,null,null,"Suma su PVM",{"$f":"IF(ISBLANK(F76), \"\", SUM(F75:F76))","v":""}]
[]
[]
[]
["5. DALIS","SKRANDŽIO ZONDAI NR.32"]
[]
["Tiekėjo pasiūlymas:"]
["Nr.","Pavadinimas","Kiekis","Mato vienetas","Kaina be PVM, Eur","Suma be PVM, Eur","Siūlomi produktai"]
["5.","Skrandžio zondai Nr.32"]
["5.1.","Skrandžio zondai Nr.32",1000,"vnt",null,{"$f":"IF(ISBLANK(E86),\"\", PRODUCT(C86,E86))","v":""}]
[null,null,null,null,"Suma be PVM",{"$f":"IF(F86=\"\",\"\",SUM(F86:F86))","v":""},{"$f":"IF(F86=\"\",\"Neužpildytos visos objektų kainos\",\"\")","v":"Neužpildytos visos objektų kainos"}]
[null,null,null,null,"PVM suma"]
[null,null,null,null,"Suma su PVM",{"$f":"IF(ISBLANK(F88), \"\", SUM(F87:F88))","v":""}]
[]
[]
[]
["6. DALIS","KATETERIAI FOLEY CH 14"]
[]
["Tiekėjo pasiūlymas:"]
["Nr.","Pavadinimas","Kiekis","Mato vienetas","Kaina be PVM, Eur","Suma be PVM, Eur","Siūlomi produktai"]
["6.","Kateteriai Foley CH 14"]
["6.1.","Kateteriai Foley, CH 14",970,"vnt",null,{"$f":"IF(ISBLANK(E98),\"\", PRODUCT(C98,E98))","v":""}]
[null,null,null,null,"Suma be PVM",{"$f":"IF(F98=\"\",\"\",SUM(F98:F98))","v":""},{"$f":"IF(F98=\"\",\"Neužpildytos visos objektų kainos\",\"\")","v":"Neužpildytos visos objektų kainos"}]
[null,null,null,null,"PVM suma"]
[null,null,null,null,"Suma su PVM",{"$f":"IF(ISBLANK(F100), \"\", SUM(F99:F100))","v":""}]
[]
[]
[]
["7. DALIS","ADATOS SPINALINĖS,JŲ PRAVEDĖJAI PENCIL POINT TIPO SU INTRODIUSERIU"]
[]
["Tiekėjo pasiūlymas:"]
["Nr.","Pavadinimas","Kiekis","Mato vienetas","Kaina be PVM, Eur","Suma be PVM, Eur","Siūlomi produktai"]
["7.","Adatos spinalinės,jų pravedėjai Pencil point tipo su introdiuseriu"]
["7.1.","Adatos spinalinės,jų pravedėjai Pencil point tipo su introdiuseriu, 27G/88mm",250,"vnt",3.7,{"$f":"IF(ISBLANK(E110),\"\", PRODUCT(C110,E110))","v":925},"Pencan k. 4502051-13"]
[null,null,null,null,"Suma be PVM",{"$f":"IF(F110=\"\",\"\",SUM(F110:F110))","v":925},{"$f":"IF(F110=\"\",\"Neužpildytos visos objektų kainos\",\"\")","v":""}]
[null,null,null,null,"PVM suma",{"$f":"(F111*1.05)-F111","v":46.25}]
[null,null,null,null,"Suma su PVM",{"$f":"IF(ISBLANK(F112), \"\", SUM(F111:F112))","v":971.25}]
[]
[]
[]
["8. DALIS","KOMBINUOTAS KVĖPAVIMO FILTRAS SU DRĖGMĖS GRĄŽINIMU"]
[]
["Tiekėjo pasiūlymas:"]
["Nr.","Pavadinimas","Kiekis","Mato vienetas","Kaina be PVM, Eur","Suma be PVM, Eur","Siūlomi produktai"]
["8.","Kombinuotas kvėpavimo filtras su drėgmės grąžinimu"]
["8.1.","Kombinuotas kvėpavimo filtras su drėgmės grąžinimu",2600,"vnt",null,{"$f":"IF(ISBLANK(E122),\"\", PRODUCT(C122,E122))","v":""}]
[null,null,null,null,"Suma be PVM",{"$f":"IF(F122=\"\",\"\",SUM(F122:F122))","v":""},{"$f":"IF(F122=\"\",\"Neužpildytos visos objektų kainos\",\"\")","v":"Neužpildytos visos objektų kainos"}]
[null,null,null,null,"PVM suma"]
[null,null,null,null,"Suma su PVM",{"$f":"IF(ISBLANK(F124), \"\", SUM(F123:F124))","v":""}]
[]
[]
[]
["9. DALIS","ADATOS INJEKCINĖS"]
[]
["Tiekėjo pasiūlymas:"]
["Nr.","Pavadinimas","Kiekis","Mato vienetas","Kaina be PVM, Eur","Suma be PVM, Eur","Siūlomi produktai"]
["9.","Adatos injekcinės"]
["9.1.","Adatos injekcinės, dydis 1,1x40mm (±2mm)",1300,"vnt",null,{"$f":"IF(ISBLANK(E134),\"\", PRODUCT(C134,E134))","v":""}]
[null,null,null,null,"Suma be PVM",{"$f":"IF(F134=\"\",\"\",SUM(F134:F134))","v":""},{"$f":"IF(F134=\"\",\"Neužpildytos visos objektų kainos\",\"\")","v":"Neužpildytos visos objektų kainos"}]
[null,null,null,null,"PVM suma"]
[null,null,null,null,"Suma su PVM",{"$f":"IF(ISBLANK(F136), \"\", SUM(F135:F136))","v":""}]
[]
[]
[]
["10. DALIS","ADATOS SPINALINĖS,JŲ PRAVEDĖJAI QUINCKE TIPO"]
[]
["Tiekėjo pasiūlymas:"]
["Nr.","Pavadinimas","Kiekis","Mato vienetas","Kaina be PVM, Eur","Suma be PVM, Eur","Siūlomi produktai"]
["10.","Adatos spinalinės,jų pravedėjai Quincke tipo"]
["10.1.","Adatos spinalinės,jų pravedėjai Quincke tipo 25G/88mm (±2mm)",180,"vnt",1.3,{"$f":"IF(ISBLANK(E146),\"\", PRODUCT(C146,E146))","v":234},"Spinocan, intordiuseris k. 4505905-01 ir 4505000-13"]
["10.2.","Adatos spinalinės,jų pravedėjai Quincke tipo 27G/120mm (±2mm)",60,"vnt",1.3,{"$f":"IF(ISBLANK(E147),\"\", PRODUCT(C147,E147))","v":78},"Spinocan, intordiuseris k. 4502140-13 ir 4500059-13"]
["10.3.","Adatos spinalinės,jų pravedėjai Quincke tipo 27G/88mm (±2mm)",1000,"vnt",1.3,{"$f":"IF(ISBLANK(E148),\"\", PRODUCT(C148,E148))","v":1300},"Spinocan, intordiuseris k. 4503902-01 ir 4500059-13"]
[null,null,null,null,"Suma be PVM",{"$f":"IF((SUMPRODUCT(--(F146:F148=\"\"))>0), \"\", SUM(F146:F148))","v":1612},{"$f":"IF((SUMPRODUCT(--(F146:F148=\"\"))>0), \"Neužpildytos visų objektų kainos\", \"\")","v":""}]
[null,null,null,null,"PVM suma",{"$f":"(F149*1.05)-F149","v":80.600000000000136}]
[null,null,null,null,"Suma su PVM",{"$f":"IF(ISBLANK(F150), \"\", SUM(F149:F150))","v":1692.6000000000001}]
[]
[]
[]
["11. DALIS","ADATOS SPINALINĖS,JŲ PRAVEDĖJAI STERICAN TIPO"]
[]
["Tiekėjo pasiūlymas:"]
["Nr.","Pavadinimas","Kiekis","Mato vienetas","Kaina be PVM, Eur","Suma be PVM, Eur","Siūlomi produktai"]
["11.","Adatos spinalinės,jų pravedėjai Sterican tipo"]
["11.1.","Adatos spinalinės,jų pravedėjai Sterican tipo 14G 2,1x80mm (±2mm)",650,"vnt",0.35,{"$f":"IF(ISBLANK(E160),\"\", PRODUCT(C160,E160))","v":227.49999999999997},"Sterican k.4665473"]
["11.2.","Adatos spinalinės,jų pravedėjai Sterican tipo 21G 0,80x120mm (±2mm)",970,"vnt",0.15,{"$f":"IF(ISBLANK(E161),\"\", PRODUCT(C161,E161))","v":145.5},"Sterican k. 4665643"]
[null,null,null,null,"Suma be PVM",{"$f":"IF((SUMPRODUCT(--(F160:F161=\"\"))>0), \"\", SUM(F160:F161))","v":373},{"$f":"IF((SUMPRODUCT(--(F160:F161=\"\"))>0), \"Neužpildytos visų objektų kainos\", \"\")","v":""}]
[null,null,null,null,"PVM suma",{"$f":"(F162*1.05)-F162","v":18.650000000000034}]
[null,null,null,null,"Suma su PVM",{"$f":"IF(ISBLANK(F163), \"\", SUM(F162:F163))","v":391.65000000000003}]
[]
[]
[]
["12. DALIS","CENTRINĖS VENOS KATETERIZAVIMO RINKINIAI"]
[]
["Tiekėjo pasiūlymas:"]
["Nr.","Pavadinimas","Kiekis","Mato vienetas","Kaina be PVM, Eur","Suma be PVM, Eur","Siūlomi produktai"]
["12.","Centrinės venos kateterizavimo rinkiniai"]
["12.1.","Centrinės venos kateterizavimo rinkiniai dvikanaliai",130,"vnt",16.899999999999999,{"$f":"IF(ISBLANK(E173),\"\", PRODUCT(C173,E173))","v":2197},"Certofix duo k. 4161211-07"]
[null,null,null,null,"Suma be PVM",{"$f":"IF(F173=\"\",\"\",SUM(F173:F173))","v":2197},{"$f":"IF(F173=\"\",\"Neužpildytos visos objektų kainos\",\"\")","v":""}]
[null,null,null,null,"PVM suma",{"$f":"(F174*1.05)-F174","v":109.84999999999991}]
[null,null,null,null,"Suma su PVM",{"$f":"IF(ISBLANK(F175), \"\", SUM(F174:F175))","v":2306.85}]
[]
[]
[]
["13. DALIS","RINKINYS EPICISTOSTOMAI"]
[]
["Tiekėjo pasiūlymas:"]
["Nr.","Pavadinimas","Kiekis","Mato vienetas","Kaina be PVM, Eur","Suma be PVM, Eur","Siūlomi produktai"]
["13.","Rinkinys epicistostomai"]
["13.1.","Rinkinys epicistostomai",4,"vnt",null,{"$f":"IF(ISBLANK(E185),\"\", PRODUCT(C185,E185))","v":""}]
[null,null,null,null,"Suma be PVM",{"$f":"IF(F185=\"\",\"\",SUM(F185:F185))","v":""},{"$f":"IF(F185=\"\",\"Neužpildytos visos objektų kainos\",\"\")","v":"Neužpildytos visos objektų kainos"}]
[null,null,null,null,"PVM suma"]
[null,null,null,null,"Suma su PVM",{"$f":"IF(ISBLANK(F187), \"\", SUM(F186:F187))","v":""}]
[]
[]
[]
["14. DALIS","ELEKTRODAI VIRŠODINIAI"]
[]
["Tiekėjo pasiūlymas:"]
["Nr.","Pavadinimas","Kiekis","Mato vienetas","Kaina be PVM, Eur","Suma be PVM, Eur","Siūlomi produktai"]
["14.","Elektrodai viršodiniai"]
["14.1.","Elektrodai viršodiniai",650,"vnt",null,{"$f":"IF(ISBLANK(E197),\"\", PRODUCT(C197,E197))","v":""}]
[null,null,null,null,"Suma be PVM",{"$f":"IF(F197=\"\",\"\",SUM(F197:F197))","v":""},{"$f":"IF(F197=\"\",\"Neužpildytos visos objektų kainos\",\"\")","v":"Neužpildytos visos objektų kainos"}]
[null,null,null,null,"PVM suma"]
[null,null,null,null,"Suma su PVM",{"$f":"IF(ISBLANK(F199), \"\", SUM(F198:F199))","v":""}]
[]
[]
[]
["15. DALIS","HCG NĖŠTUMO NUSTATYMO TESTAS KASETĖ"]
[]
["Tiekėjo pasiūlymas:"]
["Nr.","Pavadinimas","Kiekis","Mato vienetas","Kaina be PVM, Eur","Suma be PVM, Eur","Siūlomi produktai"]
["15.","HCG nėštumo nustatymo testas kasetė"]
["15.1.","HCG nėštumo nustatymo testas kasetė",100,"vnt",null,{"$f":"IF(ISBLANK(E209),\"\", PRODUCT(C209,E209))","v":""}]
[null,null,null,null,"Suma be PVM",{"$f":"IF(F209=\"\",\"\",SUM(F209:F209))","v":""},{"$f":"IF(F209=\"\",\"Neužpildytos visos objektų kainos\",\"\")","v":"Neužpildytos visos objektų kainos"}]
[null,null,null,null,"PVM suma"]
[null,null,null,null,"Suma su PVM",{"$f":"IF(ISBLANK(F211), \"\", SUM(F210:F211))","v":""}]
[]
[]
[]
["16. DALIS","VAMZDELIS TRACHEOSTOMINIS ARMUOTAS SU MANŽETE"]
[]
["Tiekėjo pasiūlymas:"]
["Nr.","Pavadinimas","Kiekis","Mato vienetas","Kaina be PVM, Eur","Suma be PVM, Eur","Siūlomi produktai"]
["16.","Vamzdelis tracheostominis armuotas su manžete"]
["16.1.","Vamzdelis tracheostominis armuotas su  manžete",25,"vnt",null,{"$f":"IF(ISBLANK(E221),\"\", PRODUCT(C221,E221))","v":""}]
["16.2.","Vamzdelis tracheostominis armuotas ir manžete",3,"vnt",null,{"$f":"IF(ISBLANK(E222),\"\", PRODUCT(C222,E222))","v":""}]
[null,null,null,null,"Suma be PVM",{"$f":"IF((SUMPRODUCT(--(F221:F222=\"\"))>0), \"\", SUM(F221:F222))","v":""},{"$f":"IF((SUMPRODUCT(--(F221:F222=\"\"))>0), \"Neužpildytos visų objektų kainos\", \"\")","v":"Neužpildytos visų objektų kainos"}]
[null,null,null,null,"PVM suma"]
[null,null,null,null,"Suma su PVM",{"$f":"IF(ISBLANK(F224), \"\", SUM(F223:F224))","v":""}]
[]
[]
[]
["17. DALIS","NOSIES KANIULĖS"]
[]
["Tiekėjo pasiūlymas:"]
["Nr.","Pavadinimas","Kiekis","Mato vienetas","Kaina be PVM, Eur","Suma be PVM, Eur","Siūlomi produktai"]
["17.","Nosies kaniulės"]
["17.1.","Nosies kaniulės",35,"vnt",null,{"$f":"IF(ISBLANK(E234),\"\", PRODUCT(C234,E234))","v":""}]
[null,null,null,null,"Suma be PVM",{"$f":"IF(F234=\"\",\"\",SUM(F234:F234))","v":""},{"$f":"IF(F234=\"\",\"Neužpildytos visos objektų kainos\",\"\")","v":"Neužpildytos visos objektų kainos"}]
[null,null,null,null,"PVM suma"]
[null,null,null,null,"Suma su PVM",{"$f":"IF(ISBLANK(F236), \"\", SUM(F235:F236))","v":""}]
[]
[]
[]
["18. DALIS","TARPINĖ ANTIASTMATINIAMS VAISTAMS INHALIUOTI (LYGIAVERTĖ OPTICHAMBER DIAMOND)"]
[]
["Tiekėjo pasiūlymas:"]
["Nr.","Pavadinimas","Kiekis","Mato vienetas","Kaina be PVM, Eur","Suma be PVM, Eur","Siūlomi produktai"]
["18.","Tarpinė antiastmatiniams vaistams inhaliuoti (lygiavertė OptiChamber Diamond)"]
["18.1.","Tarpinė antiastmatiniams vaistams inhaliuoti (lygiavertė OptiChamber Diamond)",4,"vnt",null,{"$f":"IF(ISBLANK(E246),\"\", PRODUCT(C246,E246))","v":""}]
[null,null,null,null,"Suma be PVM",{"$f":"IF(F246=\"\",\"\",SUM(F246:F246))","v":""},{"$f":"IF(F246=\"\",\"Neužpildytos visos objektų kainos\",\"\")","v":"Neužpildytos visos objektų kainos"}]
[null,null,null,null,"PVM suma"]
[null,null,null,null,"Suma su PVM",{"$f":"IF(ISBLANK(F248), \"\", SUM(F247:F248))","v":""}]
[]
[]
[]
["19. DALIS","SKARIFIKATORIAI STERILŪS"]
[]
["Tiekėjo pasiūlymas:"]
["Nr.","Pavadinimas","Kiekis","Mato vienetas","Kaina be PVM, Eur","Suma be PVM, Eur","Siūlomi produktai"]
["19.","Skarifikatoriai sterilūs"]
["19.1.","Skarifikatoriai sterilūs",2200,"vnt",null,{"$f":"IF(ISBLANK(E258),\"\", PRODUCT(C258,E258))","v":""}]
[null,null,null,null,"Suma be PVM",{"$f":"IF(F258=\"\",\"\",SUM(F258:F258))","v":""},{"$f":"IF(F258=\"\",\"Neužpildytos visos objektų kainos\",\"\")","v":"Neužpildytos visos objektų kainos"}]
[null,null,null,null,"PVM suma"]
[null,null,null,null,"Suma su PVM",{"$f":"IF(ISBLANK(F260), \"\", SUM(F259:F260))","v":""}]
[]
[]
[]
["20. DALIS","PEILIUKAS OFTALMOLOGINIS PLYŠINIS 2,4MM"]
[]
["Tiekėjo pasiūlymas:"]
["Nr.","Pavadinimas","Kiekis","Mato vienetas","Kaina be PVM, Eur","Suma be PVM, Eur","Siūlomi produktai"]
["20.","Peiliukas oftalmologinis plyšinis 2,4mm"]
["20.1.","Peiliukas oftalmologinis plyšinis 2,4mm",90,"vnt",null,{"$f":"IF(ISBLANK(E270),\"\", PRODUCT(C270,E270))","v":""}]
[null,null,null,null,"Suma be PVM",{"$f":"IF(F270=\"\",\"\",SUM(F270:F270))","v":""},{"$f":"IF(F270=\"\",\"Neužpildytos visos objektų kainos\",\"\")","v":"Neužpildytos visos objektų kainos"}]
[null,null,null,null,"PVM suma"]
[null,null,null,null,"Suma su PVM",{"$f":"IF(ISBLANK(F272), \"\", SUM(F271:F272))","v":""}]
[]
[]
[]
["21. DALIS","PTVAA PAGALBINIŲ PRIETAISŲ RINKINIAI"]
[]
["Tiekėjo pasiūlymas:"]
["Nr.","Pavadinimas","Kiekis","Mato vienetas","Kaina be PVM, Eur","Suma be PVM, Eur","Siūlomi produktai"]
["21.","PTVAA pagalbinių prietaisų rinkiniai"]
["21.1.","PTVAA pagalbinių prietaisų rinkiniai",25,"vnt",null,{"$f":"IF(ISBLANK(E282),\"\", PRODUCT(C282,E282))","v":""}]
[null,null,null,null,"Suma be PVM",{"$f":"IF(F282=\"\",\"\",SUM(F282:F282))","v":""},{"$f":"IF(F282=\"\",\"Neužpildytos visos objektų kainos\",\"\")","v":"Neužpildytos visos objektų kainos"}]
[null,null,null,null,"PVM suma"]
[null,null,null,null,"Suma su PVM",{"$f":"IF(ISBLANK(F284), \"\", SUM(F283:F284))","v":""}]
[]
[]
[]
["22. DALIS","NOSIES TAMPONAI"]
[]
["Tiekėjo pasiūlymas:"]
["Nr.","Pavadinimas","Kiekis","Mato vienetas","Kaina be PVM, Eur","Suma be PVM, Eur","Siūlomi produktai"]
["22.","Nosies tamponai"]
["22.1.","Nosies tamponai",120,"vnt",null,{"$f":"IF(ISBLANK(E294),\"\", PRODUCT(C294,E294))","v":""}]
[null,null,null,null,"Suma be PVM",{"$f":"IF(F294=\"\",\"\",SUM(F294:F294))","v":""},{"$f":"IF(F294=\"\",\"Neužpildytos visos objektų kainos\",\"\")","v":"Neužpildytos visos objektų kainos"}]
[null,null,null,null,"PVM suma"]
[null,null,null,null,"Suma su PVM",{"$f":"IF(ISBLANK(F296), \"\", SUM(F295:F296))","v":""}]
[]
[]
[]
["23. DALIS","NEUTRALUS ELEKTRODAS"]
[]
["Tiekėjo pasiūlymas:"]
["Nr.","Pavadinimas","Kiekis","Mato vienetas","Kaina be PVM, Eur","Suma be PVM, Eur","Siūlomi produktai"]
["23.","Neutralus elektrodas"]
["23.1.","Neutralus elektrodas",350,"vnt",null,{"$f":"IF(ISBLANK(E306),\"\", PRODUCT(C306,E306))","v":""}]
[null,null,null,null,"Suma be PVM",{"$f":"IF(F306=\"\",\"\",SUM(F306:F306))","v":""},{"$f":"IF(F306=\"\",\"Neužpildytos visos objektų kainos\",\"\")","v":"Neužpildytos visos objektų kainos"}]
[null,null,null,null,"PVM suma"]
[null,null,null,null,"Suma su PVM",{"$f":"IF(ISBLANK(F308), \"\", SUM(F307:F308))","v":""}]
[]
[]
[]
["24. DALIS","PERIFERINIAI SAVAIME IŠPLEČIANTYS STENTAI, NAUDOJAMI SU 0.035“ PRAVEDIMO VIELA"]
[]
["Tiekėjo pasiūlymas:"]
["Nr.","Pavadinimas","Kiekis","Mato vienetas","Kaina be PVM, Eur","Suma be PVM, Eur","Siūlomi produktai"]
["24.","Periferiniai savaime išplečiantys stentai, naudojami su 0.035“ pravedimo viela"]
["24.1.","Periferiniai savaime išplečiantys stentai, naudojami su 0.035“ pravedimo viela",60,"vnt",null,{"$f":"IF(ISBLANK(E318),\"\", PRODUCT(C318,E318))","v":""}]
[null,null,null,null,"Suma be PVM",{"$f":"IF(F318=\"\",\"\",SUM(F318:F318))","v":""},{"$f":"IF(F318=\"\",\"Neužpildytos visos objektų kainos\",\"\")","v":"Neužpildytos visos objektų kainos"}]
[null,null,null,null,"PVM suma"]
[null,null,null,null,"Suma su PVM",{"$f":"IF(ISBLANK(F320), \"\", SUM(F319:F320))","v":""}]
[]
[]
[]
["25. DALIS","GAUBTELIAI AKIMS"]
[]
["Tiekėjo pasiūlymas:"]
["Nr.","Pavadinimas","Kiekis","Mato vienetas","Kaina be PVM, Eur","Suma be PVM, Eur","Siūlomi produktai"]
["25.","Gaubteliai akims"]
["25.1.","Gaubteliai akims",220,"vnt",null,{"$f":"IF(ISBLANK(E330),\"\", PRODUCT(C330,E330))","v":""}]
[null,null,null,null,"Suma be PVM",{"$f":"IF(F330=\"\",\"\",SUM(F330:F330))","v":""},{"$f":"IF(F330=\"\",\"Neužpildytos visos objektų kainos\",\"\")","v":"Neužpildytos visos objektų kainos"}]
[null,null,null,null,"PVM suma"]
[null,null,null,null,"Suma su PVM",{"$f":"IF(ISBLANK(F332), \"\", SUM(F331:F332))","v":""}]
[]
[]
[]
["26. DALIS","ŠVIESTUVŲ RANKENOS"]
[]
["Tiekėjo pasiūlymas:"]
["Nr.","Pavadinimas","Kiekis","Mato vienetas","Kaina be PVM, Eur","Suma be PVM, Eur","Siūlomi produktai"]
["26.","Šviestuvų rankenos"]
["26.1.","Šviestuvų rankenos",300,"vnt",null,{"$f":"IF(ISBLANK(E342),\"\", PRODUCT(C342,E342))","v":""}]
[null,null,null,null,"Suma be PVM",{"$f":"IF(F342=\"\",\"\",SUM(F342:F342))","v":""},{"$f":"IF(F342=\"\",\"Neužpildytos visos objektų kainos\",\"\")","v":"Neužpildytos visos objektų kainos"}]
[null,null,null,null,"PVM suma"]
[null,null,null,null,"Suma su PVM",{"$f":"IF(ISBLANK(F344), \"\", SUM(F343:F344))","v":""}]
[]
[]
[]
["27. DALIS","AUKŠTO SLĖGIO (1200 PSI) PRAILGINIMO LINIJA"]
[]
["Tiekėjo pasiūlymas:"]
["Nr.","Pavadinimas","Kiekis","Mato vienetas","Kaina be PVM, Eur","Suma be PVM, Eur","Siūlomi produktai"]
["27.","Aukšto slėgio (1200 psi) prailginimo linija"]
["27.1.","Aukšto slėgio (1200 psi) prailginimo linija",1800,"vnt",4.8,{"$f":"IF(ISBLANK(E354),\"\", PRODUCT(C354,E354))","v":8640},5018864]
[null,null,null,null,"Suma be PVM",{"$f":"IF(F354=\"\",\"\",SUM(F354:F354))","v":8640},{"$f":"IF(F354=\"\",\"Neužpildytos visos objektų kainos\",\"\")","v":""}]
[null,null,null,null,"PVM suma",432]
[null,null,null,null,"Suma su PVM",{"$f":"IF(ISBLANK(F356), \"\", SUM(F355:F356))","v":9072}]
[]
[]
[]
["28. DALIS","BIPOLINĖS ŽNYPLĖS"]
[]
["Tiekėjo pasiūlymas:"]
["Nr.","Pavadinimas","Kiekis","Mato vienetas","Kaina be PVM, Eur","Suma be PVM, Eur","Siūlomi produktai"]
["28.","Bipolinės žnyplės"]
["28.1.","Bipolinės žnyplės",6,"vnt",null,{"$f":"IF(ISBLANK(E366),\"\", PRODUCT(C366,E366))","v":""}]
[null,null,null,null,"Suma be PVM",{"$f":"IF(F366=\"\",\"\",SUM(F366:F366))","v":""},{"$f":"IF(F366=\"\",\"Neužpildytos visos objektų kainos\",\"\")","v":"Neužpildytos visos objektų kainos"}]
[null,null,null,null,"PVM suma"]
[null,null,null,null,"Suma su PVM",{"$f":"IF(ISBLANK(F368), \"\", SUM(F367:F368))","v":""}]
[]
[]
[]
["29. DALIS","PIRŠTINES GINEKOLOGINES ILGOS"]
[]
["Tiekėjo pasiūlymas:"]
["Nr.","Pavadinimas","Kiekis","Mato vienetas","Kaina be PVM, Eur","Suma be PVM, Eur","Siūlomi produktai"]
["29.","Pirštines ginekologines ilgos"]
["29.1.","Pirštines ginekologines ilgos 7 dydis",1300,"vnt",null,{"$f":"IF(ISBLANK(E378),\"\", PRODUCT(C378,E378))","v":""}]
["29.2.","Pirštines ginekologines ilgos 8 dydis",650,"vnt",null,{"$f":"IF(ISBLANK(E379),\"\", PRODUCT(C379,E379))","v":""}]
[null,null,null,null,"Suma be PVM",{"$f":"IF((SUMPRODUCT(--(F378:F379=\"\"))>0), \"\", SUM(F378:F379))","v":""},{"$f":"IF((SUMPRODUCT(--(F378:F379=\"\"))>0), \"Neužpildytos visų objektų kainos\", \"\")","v":"Neužpildytos visų objektų kainos"}]
[null,null,null,null,"PVM suma"]
[null,null,null,null,"Suma su PVM",{"$f":"IF(ISBLANK(F381), \"\", SUM(F380:F381))","v":""}]
[]
[]
[]
["30. DALIS","DIAGNOSTINIAI KATETERIAI"]
[]
["Tiekėjo pasiūlymas:"]
["Nr.","Pavadinimas","Kiekis","Mato vienetas","Kaina be PVM, Eur","Suma be PVM, Eur","Siūlomi produktai"]
["30.","Diagnostiniai kateteriai"]
["30.1.","Diagnostiniai kateteriai",25,"vnt",null,{"$f":"IF(ISBLANK(E391),\"\", PRODUCT(C391,E391))","v":""}]
[null,null,null,null,"Suma be PVM",{"$f":"IF(F391=\"\",\"\",SUM(F391:F391))","v":""},{"$f":"IF(F391=\"\",\"Neužpildytos visos objektų kainos\",\"\")","v":"Neužpildytos visos objektų kainos"}]
[null,null,null,null,"PVM suma"]
[null,null,null,null,"Suma su PVM",{"$f":"IF(ISBLANK(F393), \"\", SUM(F392:F393))","v":""}]
[]
[]
[]
["31. DALIS","SPIROMETRO KANDIKLIS"]
[]
["Tiekėjo pasiūlymas:"]
["Nr.","Pavadinimas","Kiekis","Mato vienetas","Kaina be PVM, Eur","Suma be PVM, Eur","Siūlomi produktai"]
["31.","Spirometro kandiklis"]
["31.1.","Spirometro kandiklis",500,"vnt",null,{"$f":"IF(ISBLANK(E403),\"\", PRODUCT(C403,E403))","v":""}]
[null,null,null,null,"Suma be PVM",{"$f":"IF(F403=\"\",\"\",SUM(F403:F403))","v":""},{"$f":"IF(F403=\"\",\"Neužpildytos visos objektų kainos\",\"\")","v":"Neužpildytos visos objektų kainos"}]
[null,null,null,null,"PVM suma"]
[null,null,null,null,"Suma su PVM",{"$f":"IF(ISBLANK(F405), \"\", SUM(F404:F405))","v":""}]
[]
[]
[]
["32. DALIS","ŽARNYNO ZONDAS"]
[]
["Tiekėjo pasiūlymas:"]
["Nr.","Pavadinimas","Kiekis","Mato vienetas","Kaina be PVM, Eur","Suma be PVM, Eur","Siūlomi produktai"]
["32.","Žarnyno zondas"]
["32.1.","Žarnyno zondas-Dvigubas",5,"vnt",null,{"$f":"IF(ISBLANK(E415),\"\", PRODUCT(C415,E415))","v":""}]
[null,null,null,null,"Suma be PVM",{"$f":"IF(F415=\"\",\"\",SUM(F415:F415))","v":""},{"$f":"IF(F415=\"\",\"Neužpildytos visos objektų kainos\",\"\")","v":"Neužpildytos visos objektų kainos"}]
[null,null,null,null,"PVM suma"]
[null,null,null,null,"Suma su PVM",{"$f":"IF(ISBLANK(F417), \"\", SUM(F416:F417))","v":""}]
[]
[]
[]
["33. DALIS","ŽARNYNO ZONDAS"]
[]
["Tiekėjo pasiūlymas:"]
["Nr.","Pavadinimas","Kiekis","Mato vienetas","Kaina be PVM, Eur","Suma be PVM, Eur","Siūlomi produktai"]
["33.","Žarnyno zondas"]
["33.1.","Žarnyno zondas-Vienkanalis",5,"vnt",null,{"$f":"IF(ISBLANK(E427),\"\", PRODUCT(C427,E427))","v":""}]
[null,null,null,null,"Suma be PVM",{"$f":"IF(F427=\"\",\"\",SUM(F427:F427))","v":""},{"$f":"IF(F427=\"\",\"Neužpildytos visos objektų kainos\",\"\")","v":"Neužpildytos visos objektų kainos"}]
[null,null,null,null,"PVM suma"]
[null,null,null,null,"Suma su PVM",{"$f":"IF(ISBLANK(F429), \"\", SUM(F428:F429))","v":""}]
[]
[]
[]
["34. DALIS","OKLIUZINIAI KATETERIAI"]
[]
["Tiekėjo pasiūlymas:"]
["Nr.","Pavadinimas","Kiekis","Mato vienetas","Kaina be PVM, Eur","Suma be PVM, Eur","Siūlomi produktai"]
["34.","Okliuziniai kateteriai"]
["34.1.","Okliuziniai kateteriai 3F",9,"vnt",null,{"$f":"IF(ISBLANK(E439),\"\", PRODUCT(C439,E439))","v":""}]
["34.2.","Okliuziniai kateteriai 4F",9,"vnt.",null,{"$f":"IF(ISBLANK(E440),\"\", PRODUCT(C440,E440))","v":""}]
["34.3.","Okliuziniai kateteriai 5F",9,"vnt.",null,{"$f":"IF(ISBLANK(E441),\"\", PRODUCT(C441,E441))","v":""}]
["34.4.","Okliuziniai kateteriai 9F",9,"vnt.",null,{"$f":"IF(ISBLANK(E442),\"\", PRODUCT(C442,E442))","v":""}]
["34.5.","Okliuziniai kateteriai 12F",15,"vnt.",null,{"$f":"IF(ISBLANK(E443),\"\", PRODUCT(C443,E443))","v":""}]
[null,null,null,null,"Suma be PVM",{"$f":"IF((SUMPRODUCT(--(F439:F443=\"\"))>0), \"\", SUM(F439:F443))","v":""},{"$f":"IF((SUMPRODUCT(--(F439:F443=\"\"))>0), \"Neužpildytos visų objektų kainos\", \"\")","v":"Neužpildytos visų objektų kainos"}]
[null,null,null,null,"PVM suma"]
[null,null,null,null,"Suma su PVM",{"$f":"IF(ISBLANK(F445), \"\", SUM(F444:F445))","v":""}]
[]
[]
[]
["35. DALIS","VENTRIKULINIAI KATETERIAI"]
[]
["Tiekėjo pasiūlymas:"]
["Nr.","Pavadinimas","Kiekis","Mato vienetas","Kaina be PVM, Eur","Suma be PVM, Eur","Siūlomi produktai"]
["35.","Ventrikuliniai kateteriai"]
["35.1.","Ventrikuliniai kateteriai 5F diametro",20,"vnt.",null,{"$f":"IF(ISBLANK(E455),\"\", PRODUCT(C455,E455))","v":""}]
["35.2.","Ventrikuliniai kateteriai 5F diametro",20,"vnt.",null,{"$f":"IF(ISBLANK(E456),\"\", PRODUCT(C456,E456))","v":""}]
[null,null,null,null,"Suma be PVM",{"$f":"IF((SUMPRODUCT(--(F455:F456=\"\"))>0), \"\", SUM(F455:F456))","v":""},{"$f":"IF((SUMPRODUCT(--(F455:F456=\"\"))>0), \"Neužpildytos visų objektų kainos\", \"\")","v":"Neužpildytos visų objektų kainos"}]
[null,null,null,null,"PVM suma"]
[null,null,null,null,"Suma su PVM",{"$f":"IF(ISBLANK(F458), \"\", SUM(F457:F458))","v":""}]
[]
[]
[]
["36. DALIS","KONTRALATERALINIAI KATETERIAI"]
[]
["Tiekėjo pasiūlymas:"]
["Nr.","Pavadinimas","Kiekis","Mato vienetas","Kaina be PVM, Eur","Suma be PVM, Eur","Siūlomi produktai"]
["36.","Kontralateraliniai kateteriai"]
["36.1.","Kontralateraliniai kateteriai 5F",20,"vnt.",null,{"$f":"IF(ISBLANK(E468),\"\", PRODUCT(C468,E468))","v":""}]
["36.2.","Kontralateraliniai kateteriai 5F",20,"vnt.",null,{"$f":"IF(ISBLANK(E469),\"\", PRODUCT(C469,E469))","v":""}]
[null,null,null,null,"Suma be PVM",{"$f":"IF((SUMPRODUCT(--(F468:F469=\"\"))>0), \"\", SUM(F468:F469))","v":""},{"$f":"IF((SUMPRODUCT(--(F468:F469=\"\"))>0), \"Neužpildytos visų objektų kainos\", \"\")","v":"Neužpildytos visų objektų kainos"}]
[null,null,null,null,"PVM suma"]
[null,null,null,null,"Suma su PVM",{"$f":"IF(ISBLANK(F471), \"\", SUM(F470:F471))","v":""}]
[]
[]
[]
["37. DALIS","ELEKTRODAS - ADATA"]
[]
["Tiekėjo pasiūlymas:"]
["Nr.","Pavadinimas","Kiekis","Mato vienetas","Kaina be PVM, Eur","Suma be PVM, Eur","Siūlomi produktai"]
["37.","Elektrodas - adata"]
["37.1.","Elektrodas - adata",4,"vnt",null,{"$f":"IF(ISBLANK(E481),\"\", PRODUCT(C481,E481))","v":""}]
[null,null,null,null,"Suma be PVM",{"$f":"IF(F481=\"\",\"\",SUM(F481:F481))","v":""},{"$f":"IF(F481=\"\",\"Neužpildytos visos objektų kainos\",\"\")","v":"Neužpildytos visos objektų kainos"}]
[null,null,null,null,"PVM suma"]
[null,null,null,null,"Suma su PVM",{"$f":"IF(ISBLANK(F483), \"\", SUM(F482:F483))","v":""}]
[]
[]
[]
["38. DALIS","KRAUJAGYSLIŲ SIURBIMO / DRĖKINIMO KANIULĖ (BUMBULIUKAS)"]
[]
["Tiekėjo pasiūlymas:"]
["Nr.","Pavadinimas","Kiekis","Mato vienetas","Kaina be PVM, Eur","Suma be PVM, Eur","Siūlomi produktai"]
["38.","Kraujagyslių siurbimo / drėkinimo kaniulė (bumbuliukas)"]
["38.1.","Kraujagyslių siurbimo / drėkinimo kaniulė (bumbuliukas)",4,"vnt",null,{"$f":"IF(ISBLANK(E493),\"\", PRODUCT(C493,E493))","v":""}]
["38.2.","Kraujagyslių siurbimo / drėkinimo kaniulė (bumbuliukas)",4,"vnt",null,{"$f":"IF(ISBLANK(E494),\"\", PRODUCT(C494,E494))","v":""}]
["38.3.","Kraujagyslių siurbimo / drėkinimo kaniulė (bumbuliukas)",4,"vnt",null,{"$f":"IF(ISBLANK(E495),\"\", PRODUCT(C495,E495))","v":""}]
[null,null,null,null,"Suma be PVM",{"$f":"IF((SUMPRODUCT(--(F493:F495=\"\"))>0), \"\", SUM(F493:F495))","v":""},{"$f":"IF((SUMPRODUCT(--(F493:F495=\"\"))>0), \"Neužpildytos visų objektų kainos\", \"\")","v":"Neužpildytos visų objektų kainos"}]
[null,null,null,null,"PVM suma"]
[null,null,null,null,"Suma su PVM",{"$f":"IF(ISBLANK(F497), \"\", SUM(F496:F497))","v":""}]
[]
[]
[]
["39. DALIS","AMBU MAIŠAI DIRBTINEI PLAUČIŲ VENTILIACIJAI"]
[]
["Tiekėjo pasiūlymas:"]
["Nr.","Pavadinimas","Kiekis","Mato vienetas","Kaina be PVM, Eur","Suma be PVM, Eur","Siūlomi produktai"]
["39.","Ambu maišai dirbtinei plaučių ventiliacijai"]
["39.1.","Ambu maišai dirbtinei plaučių ventiliacijai, tūris 1500-1700ml",600,"vnt",null,{"$f":"IF(ISBLANK(E507),\"\", PRODUCT(C507,E507))","v":""}]
[null,null,null,null,"Suma be PVM",{"$f":"IF(F507=\"\",\"\",SUM(F507:F507))","v":""},{"$f":"IF(F507=\"\",\"Neužpildytos visos objektų kainos\",\"\")","v":"Neužpildytos visos objektų kainos"}]
[null,null,null,null,"PVM suma"]
[null,null,null,null,"Suma su PVM",{"$f":"IF(ISBLANK(F509), \"\", SUM(F508:F509))","v":""}]
[]
[]
[]
["40. DALIS","AMBU MAIŠAI DIRBTINEI PLAUČIŲ VENTILIACIJAI"]
[]
["Tiekėjo pasiūlymas:"]
["Nr.","Pavadinimas","Kiekis","Mato vienetas","Kaina be PVM, Eur","Suma be PVM, Eur","Siūlomi produktai"]
["40.","Ambu maišai dirbtinei plaučių ventiliacijai"]
["40.1.","Ambu maišai dirbtinei plaučių ventiliacijai, tūris 500-700ml",40,"vnt",null,{"$f":"IF(ISBLANK(E519),\"\", PRODUCT(C519,E519))","v":""}]
[null,null,null,null,"Suma be PVM",{"$f":"IF(F519=\"\",\"\",SUM(F519:F519))","v":""},{"$f":"IF(F519=\"\",\"Neužpildytos visos objektų kainos\",\"\")","v":"Neužpildytos visos objektų kainos"}]
[null,null,null,null,"PVM suma"]
[null,null,null,null,"Suma su PVM",{"$f":"IF(ISBLANK(F521), \"\", SUM(F520:F521))","v":""}]
[]
[]
[]
["41. DALIS","PRIEMONĖS ELEKTRONEUROMIOGRAFIJOS TYRIMAMS ATLIKTI. ELEKTRODAI ADATINIAI"]
[]
["Tiekėjo pasiūlymas:"]
["Nr.","Pavadinimas","Kiekis","Mato vienetas","Kaina be PVM, Eur","Suma be PVM, Eur","Siūlomi produktai"]
["41.","Priemonės elektroneuromiografijos tyrimams atlikti. Elektrodai adatiniai"]
["41.1.","Priemonės elektroneuromiografijos tyrimams atlikti. Elektrodai adatiniai",220,"vnt",null,{"$f":"IF(ISBLANK(E531),\"\", PRODUCT(C531,E531))","v":""}]
[null,null,null,null,"Suma be PVM",{"$f":"IF(F531=\"\",\"\",SUM(F531:F531))","v":""},{"$f":"IF(F531=\"\",\"Neužpildytos visos objektų kainos\",\"\")","v":"Neužpildytos visos objektų kainos"}]
[null,null,null,null,"PVM suma"]
[null,null,null,null,"Suma su PVM",{"$f":"IF(ISBLANK(F533), \"\", SUM(F532:F533))","v":""}]
[]
[]
[]
["42. DALIS","PRIEMONĖS ELEKTRONEUROMIOGRAFIJOS TYRIMAMS ATLIKTI. ELEKTRODAI"]
[]
["Tiekėjo pasiūlymas:"]
["Nr.","Pavadinimas","Kiekis","Mato vienetas","Kaina be PVM, Eur","Suma be PVM, Eur","Siūlomi produktai"]
["42.","Priemonės elektroneuromiografijos tyrimams atlikti. Elektrodai"]
["42.1.","Priemonės elektroneuromiografijos tyrimams atlikti. Elektrodai",350,"vnt",null,{"$f":"IF(ISBLANK(E543),\"\", PRODUCT(C543,E543))","v":""}]
[null,null,null,null,"Suma be PVM",{"$f":"IF(F543=\"\",\"\",SUM(F543:F543))","v":""},{"$f":"IF(F543=\"\",\"Neužpildytos visos objektų kainos\",\"\")","v":"Neužpildytos visos objektų kainos"}]
[null,null,null,null,"PVM suma"]
[null,null,null,null,"Suma su PVM",{"$f":"IF(ISBLANK(F545), \"\", SUM(F544:F545))","v":""}]
[]
[]
[]
["43. DALIS","JUOSTELĖS VAISIAUS VANDENŲ TEKĖJIMO NUSTATYMUI"]
[]
["Tiekėjo pasiūlymas:"]
["Nr.","Pavadinimas","Kiekis","Mato vienetas","Kaina be PVM, Eur","Suma be PVM, Eur","Siūlomi produktai"]
["43.","Juostelės vaisiaus vandenų tekėjimo nustatymui"]
["43.1.","Juostelės vaisiaus vandenų tekėjimo nustatymui",100,"vnt",null,{"$f":"IF(ISBLANK(E555),\"\", PRODUCT(C555,E555))","v":""}]
[null,null,null,null,"Suma be PVM",{"$f":"IF(F555=\"\",\"\",SUM(F555:F555))","v":""},{"$f":"IF(F555=\"\",\"Neužpildytos visos objektų kainos\",\"\")","v":"Neužpildytos visos objektų kainos"}]
[null,null,null,null,"PVM suma"]
[null,null,null,null,"Suma su PVM",{"$f":"IF(ISBLANK(F557), \"\", SUM(F556:F557))","v":""}]
[]
[]
[]
["44. DALIS","KONSERVUOJANTIS SKYSTIS"]
[]
["Tiekėjo pasiūlymas:"]
["Nr.","Pavadinimas","Kiekis","Mato vienetas","Kaina be PVM, Eur","Suma be PVM, Eur","Siūlomi produktai"]
["44.","Konservuojantis skystis"]
["44.1.","Konservuojantis skystis",6,"vnt",null,{"$f":"IF(ISBLANK(E567),\"\", PRODUCT(C567,E567))","v":""}]
[null,null,null,null,"Suma be PVM",{"$f":"IF(F567=\"\",\"\",SUM(F567:F567))","v":""},{"$f":"IF(F567=\"\",\"Neužpildytos visos objektų kainos\",\"\")","v":"Neužpildytos visos objektų kainos"}]
[null,null,null,null,"PVM suma"]
[null,null,null,null,"Suma su PVM",{"$f":"IF(ISBLANK(F569), \"\", SUM(F568:F569))","v":""}]
[]
[]
[]
["45. DALIS","ADATOS BIOPSINĖS SU ULTRAGARSO KONTROLE"]
[]
["Tiekėjo pasiūlymas:"]
["Nr.","Pavadinimas","Kiekis","Mato vienetas","Kaina be PVM, Eur","Suma be PVM, Eur","Siūlomi produktai"]
["45.","Adatos biopsinės su ultragarso kontrole"]
["45.1.","Adatos biopsinės su ultragarso kontrole",5,"vnt",null,{"$f":"IF(ISBLANK(E579),\"\", PRODUCT(C579,E579))","v":""}]
[null,null,null,null,"Suma be PVM",{"$f":"IF(F579=\"\",\"\",SUM(F579:F579))","v":""},{"$f":"IF(F579=\"\",\"Neužpildytos visos objektų kainos\",\"\")","v":"Neužpildytos visos objektų kainos"}]
[null,null,null,null,"PVM suma"]
[null,null,null,null,"Suma su PVM",{"$f":"IF(ISBLANK(F581), \"\", SUM(F580:F581))","v":""}]
[]
[]
[]
["46. DALIS","ADATOS AKUPUNKTŪRAI"]
[]
["Tiekėjo pasiūlymas:"]
["Nr.","Pavadinimas","Kiekis","Mato vienetas","Kaina be PVM, Eur","Suma be PVM, Eur","Siūlomi produktai"]
["46.","Adatos akupunktūrai"]
["46.1.","Adatos akupunktūrai 32G",300,"vnt",null,{"$f":"IF(ISBLANK(E591),\"\", PRODUCT(C591,E591))","v":""}]
[null,null,null,null,"Suma be PVM",{"$f":"IF(F591=\"\",\"\",SUM(F591:F591))","v":""},{"$f":"IF(F591=\"\",\"Neužpildytos visos objektų kainos\",\"\")","v":"Neužpildytos visos objektų kainos"}]
[null,null,null,null,"PVM suma"]
[null,null,null,null,"Suma su PVM",{"$f":"IF(ISBLANK(F593), \"\", SUM(F592:F593))","v":""}]
[]
[]
[]
["47. DALIS","ADATA MIKROSKOPAVIMO"]
[]
["Tiekėjo pasiūlymas:"]
["Nr.","Pavadinimas","Kiekis","Mato vienetas","Kaina be PVM, Eur","Suma be PVM, Eur","Siūlomi produktai"]
["47.","Adata mikroskopavimo"]
["47.1.","Adata mikroskopavimo",10,"vnt",null,{"$f":"IF(ISBLANK(E603),\"\", PRODUCT(C603,E603))","v":""}]
[null,null,null,null,"Suma be PVM",{"$f":"IF(F603=\"\",\"\",SUM(F603:F603))","v":""},{"$f":"IF(F603=\"\",\"Neužpildytos visos objektų kainos\",\"\")","v":"Neužpildytos visos objektų kainos"}]
[null,null,null,null,"PVM suma"]
[null,null,null,null,"Suma su PVM",{"$f":"IF(ISBLANK(F605), \"\", SUM(F604:F605))","v":""}]
[]
[]
[]
["48. DALIS","ŠLAPIMO SURINKĖJAI SU VALANDINIU ŠLAPIMO MATUOKLIU IR VIDINIU PILVO SPAUDIMO MANOMETRU"]
[]
["Tiekėjo pasiūlymas:"]
["Nr.","Pavadinimas","Kiekis","Mato vienetas","Kaina be PVM, Eur","Suma be PVM, Eur","Siūlomi produktai"]
["48.","Šlapimo surinkėjai su valandiniu šlapimo matuokliu ir vidiniu pilvo spaudimo manometru"]
["48.1.","Šlapimo surinkėjai su valandiniu šlapimo matuokliu ir vidiniu pilvo spaudimo manometru",6,"vnt",null,{"$f":"IF(ISBLANK(E615),\"\", PRODUCT(C615,E615))","v":""}]
[null,null,null,null,"Suma be PVM",{"$f":"IF(F615=\"\",\"\",SUM(F615:F615))","v":""},{"$f":"IF(F615=\"\",\"Neužpildytos visos objektų kainos\",\"\")","v":"Neužpildytos visos objektų kainos"}]
[null,null,null,null,"PVM suma"]
[null,null,null,null,"Suma su PVM",{"$f":"IF(ISBLANK(F617), \"\", SUM(F616:F617))","v":""}]
[]
[]
[]
["49. DALIS","FILTRAS ANTIBAKTERINIS VAKUMINEI SIURBIMO SISTEMAI"]
[]
["Tiekėjo pasiūlymas:"]
["Nr.","Pavadinimas","Kiekis","Mato vienetas","Kaina be PVM, Eur","Suma be PVM, Eur","Siūlomi produktai"]
["49.","Filtras antibakterinis vakuminei siurbimo sistemai"]
["49.1.","Filtras antibakterinis vakuminei siurbimo sistemai",650,"vnt",null,{"$f":"IF(ISBLANK(E627),\"\", PRODUCT(C627,E627))","v":""}]
[null,null,null,null,"Suma be PVM",{"$f":"IF(F627=\"\",\"\",SUM(F627:F627))","v":""},{"$f":"IF(F627=\"\",\"Neužpildytos visos objektų kainos\",\"\")","v":"Neužpildytos visos objektų kainos"}]
[null,null,null,null,"PVM suma"]
[null,null,null,null,"Suma su PVM",{"$f":"IF(ISBLANK(F629), \"\", SUM(F628:F629))","v":""}]
[]
[]
[]
["50. DALIS","VAMZDELIS TRACHEOSTOMINIS BE MANŽETĖS"]
[]
["Tiekėjo pasiūlymas:"]
["Nr.","Pavadinimas","Kiekis","Mato vienetas","Kaina be PVM, Eur","Suma be PVM, Eur","Siūlomi produktai"]
["50.","Vamzdelis tracheostominis be manžetės"]
["50.1.","Vamzdelis tracheostominis be manžetės",20,"vnt",null,{"$f":"IF(ISBLANK(E639),\"\", PRODUCT(C639,E639))","v":""}]
[null,null,null,null,"Suma be PVM",{"$f":"IF(F639=\"\",\"\",SUM(F639:F639))","v":""},{"$f":"IF(F639=\"\",\"Neužpildytos visos objektų kainos\",\"\")","v":"Neužpildytos visos objektų kainos"}]
[null,null,null,null,"PVM suma"]
[null,null,null,null,"Suma su PVM",{"$f":"IF(ISBLANK(F641), \"\", SUM(F640:F641))","v":""}]
[]
[]
[]
["51. DALIS","ADATA PUNKCINĖ"]
[]
["Tiekėjo pasiūlymas:"]
["Nr.","Pavadinimas","Kiekis","Mato vienetas","Kaina be PVM, Eur","Suma be PVM, Eur","Siūlomi produktai"]
["51.","Adata punkcinė"]
["51.1.","Adata punkcinė",90,"vnt",null,{"$f":"IF(ISBLANK(E651),\"\", PRODUCT(C651,E651))","v":""}]
["51.2.","Adata punkcinė",80,"vnt",null,{"$f":"IF(ISBLANK(E652),\"\", PRODUCT(C652,E652))","v":""}]
[null,null,null,null,"Suma be PVM",{"$f":"IF((SUMPRODUCT(--(F651:F652=\"\"))>0), \"\", SUM(F651:F652))","v":""},{"$f":"IF((SUMPRODUCT(--(F651:F652=\"\"))>0), \"Neužpildytos visų objektų kainos\", \"\")","v":"Neužpildytos visų objektų kainos"}]
[null,null,null,null,"PVM suma"]
[null,null,null,null,"Suma su PVM",{"$f":"IF(ISBLANK(F654), \"\", SUM(F653:F654))","v":""}]
[]
[]
[]
["52. DALIS","INFUZINIŲ SISTEMŲ PRAILGINIMO LINIJA SU TRIJŲ KRYPČIŲ KRANELIU"]
[]
["Tiekėjo pasiūlymas:"]
["Nr.","Pavadinimas","Kiekis","Mato vienetas","Kaina be PVM, Eur","Suma be PVM, Eur","Siūlomi produktai"]
["52.","Infuzinių sistemų prailginimo linija su trijų krypčių kraneliu"]
["52.1.","Infuzinių sistemų prailginimo linija su trijų krypčių kraneliu",80,"vnt",null,{"$f":"IF(ISBLANK(E664),\"\", PRODUCT(C664,E664))","v":""}]
[null,null,null,null,"Suma be PVM",{"$f":"IF(F664=\"\",\"\",SUM(F664:F664))","v":""},{"$f":"IF(F664=\"\",\"Neužpildytos visos objektų kainos\",\"\")","v":"Neužpildytos visos objektų kainos"}]
[null,null,null,null,"PVM suma"]
[null,null,null,null,"Suma su PVM",{"$f":"IF(ISBLANK(F666), \"\", SUM(F665:F666))","v":""}]
[]
[]
[]
["53. DALIS","PIRŠTINĖS VIENKARTINĖS"]
[]
["Tiekėjo pasiūlymas:"]
["Nr.","Pavadinimas","Kiekis","Mato vienetas","Kaina be PVM, Eur","Suma be PVM, Eur","Siūlomi produktai"]
["53.","Pirštinės vienkartinės"]
["53.1.","Pirštinės vienkartinės",150000,"vnt",null,{"$f":"IF(ISBLANK(E676),\"\", PRODUCT(C676,E676))","v":""}]
[null,null,null,null,"Suma be PVM",{"$f":"IF(F676=\"\",\"\",SUM(F676:F676))","v":""},{"$f":"IF(F676=\"\",\"Neužpildytos visos objektų kainos\",\"\")","v":"Neužpildytos visos objektų kainos"}]
[null,null,null,null,"PVM suma"]
[null,null,null,null,"Suma su PVM",{"$f":"IF(ISBLANK(F678), \"\", SUM(F677:F678))","v":""}]
[]
[]
[]
["54. DALIS","RINKINYS PLEUROS PUNKCIJOS"]
[]
["Tiekėjo pasiūlymas:"]
["Nr.","Pavadinimas","Kiekis","Mato vienetas","Kaina be PVM, Eur","Suma be PVM, Eur","Siūlomi produktai"]
["54.","Rinkinys pleuros punkcijos"]
["54.1.","Rinkinys pleuros punkcijos",40,"vnt.",null,{"$f":"IF(ISBLANK(E688),\"\", PRODUCT(C688,E688))","v":""}]
[null,null,null,null,"Suma be PVM",{"$f":"IF(F688=\"\",\"\",SUM(F688:F688))","v":""},{"$f":"IF(F688=\"\",\"Neužpildytos visos objektų kainos\",\"\")","v":"Neužpildytos visos objektų kainos"}]
[null,null,null,null,"PVM suma"]
[null,null,null,null,"Suma su PVM",{"$f":"IF(ISBLANK(F690), \"\", SUM(F689:F690))","v":""}]
[]
[]
[]
["55. DALIS","ADATA NERVINIŲ REZGINIŲ ANASTEZIJAI SU UG REFLEKTORIAIS"]
[]
["Tiekėjo pasiūlymas:"]
["Nr.","Pavadinimas","Kiekis","Mato vienetas","Kaina be PVM, Eur","Suma be PVM, Eur","Siūlomi produktai"]
["55.","Adata nervinių rezginių anastezijai su UG reflektoriais"]
["55.1.","Adata nervinių rezginių anastezijai su UG reflektoriais",260,"vnt",4.8,{"$f":"IF(ISBLANK(E700),\"\", PRODUCT(C700,E700))","v":1248},"Ultraplex yra visi 3 dydžiai: k. 4892610-01; 4892608-01; 4892605-01"]
[null,null,null,null,"Suma be PVM",{"$f":"IF(F700=\"\",\"\",SUM(F700:F700))","v":1248},{"$f":"IF(F700=\"\",\"Neužpildytos visos objektų kainos\",\"\")","v":""}]
[null,null,null,null,"PVM suma",{"$f":"(F701*1.05)-F701","v":62.400000000000091}]
[null,null,null,null,"Suma su PVM",{"$f":"IF(ISBLANK(F702), \"\", SUM(F701:F702))","v":1310.4000000000001}]
[]
[]
[]
["56. DALIS","DIDELĖS TĖKMĖS PRIEMONĖS TAIKANT DPV SU DRĖKINTUVU"]
[]
["Tiekėjo pasiūlymas:"]
["Nr.","Pavadinimas","Kiekis","Mato vienetas","Kaina be PVM, Eur","Suma be PVM, Eur","Siūlomi produktai"]
["56.","Didelės tėkmės priemonės taikant DPV su drėkintuvu"]
["56.1.","Vienkartinis kvėpavimo kontūras didelės tėkmės deguonies terapijai  su drėkinimo indu tinkantis vaikams ir suaugusiems",150,"vnt",null,{"$f":"IF(ISBLANK(E712),\"\", PRODUCT(C712,E712))","v":""}]
["56.2.","Vienkartinė  nosinė kaniulė didelės tėkmės deguonies terapijai",150,"vnt",null,{"$f":"IF(ISBLANK(E713),\"\", PRODUCT(C713,E713))","v":""}]
[null,null,null,null,"Suma be PVM",{"$f":"IF((SUMPRODUCT(--(F712:F713=\"\"))>0), \"\", SUM(F712:F713))","v":""},{"$f":"IF((SUMPRODUCT(--(F712:F713=\"\"))>0), \"Neužpildytos visų objektų kainos\", \"\")","v":"Neužpildytos visų objektų kainos"}]
[null,null,null,null,"PVM suma"]
[null,null,null,null,"Suma su PVM",{"$f":"IF(ISBLANK(F715), \"\", SUM(F714:F715))","v":""}]
[]
[]
[]
["57. DALIS","PROKSIMALINIS SRAUTO MATUOKLIS"]
[]
["Tiekėjo pasiūlymas:"]
["Nr.","Pavadinimas","Kiekis","Mato vienetas","Kaina be PVM, Eur","Suma be PVM, Eur","Siūlomi produktai"]
["57.","Proksimalinis srauto matuoklis"]
["57.1.","Proksimalinis srauto matuoklis",350,"vnt",null,{"$f":"IF(ISBLANK(E725),\"\", PRODUCT(C725,E725))","v":""}]
[null,null,null,null,"Suma be PVM",{"$f":"IF(F725=\"\",\"\",SUM(F725:F725))","v":""},{"$f":"IF(F725=\"\",\"Neužpildytos visos objektų kainos\",\"\")","v":"Neužpildytos visos objektų kainos"}]
[null,null,null,null,"PVM suma"]
[null,null,null,null,"Suma su PVM",{"$f":"IF(ISBLANK(F727), \"\", SUM(F726:F727))","v":""}]
[]
[]
[]
["58. DALIS","DIDELĖS TĖKMĖS PRIEMONĖS PRIE DPV SU DRĖKINTUVU - ŠILDYTUVU"]
[]
["Tiekėjo pasiūlymas:"]
["Nr.","Pavadinimas","Kiekis","Mato vienetas","Kaina be PVM, Eur","Suma be PVM, Eur","Siūlomi produktai"]
["58.","Didelės tėkmės priemonės prie DPV su drėkintuvu - šildytuvu"]
["58.1.","Kontūras, tinkamas didelės tėkmės priemonėms suaugusiems Belavista",200,"vnt",null,{"$f":"IF(ISBLANK(E737),\"\", PRODUCT(C737,E737))","v":""}]
["58.2.","Didelės tėkmės nosies kaniulės suaugusiems L (didelis) dydis",240,"vnt",null,{"$f":"IF(ISBLANK(E738),\"\", PRODUCT(C738,E738))","v":""}]
[null,null,null,null,"Suma be PVM",{"$f":"IF((SUMPRODUCT(--(F737:F738=\"\"))>0), \"\", SUM(F737:F738))","v":""},{"$f":"IF((SUMPRODUCT(--(F737:F738=\"\"))>0), \"Neužpildytos visų objektų kainos\", \"\")","v":"Neužpildytos visų objektų kainos"}]
[null,null,null,null,"PVM suma"]
[null,null,null,null,"Suma su PVM",{"$f":"IF(ISBLANK(F740), \"\", SUM(F739:F740))","v":""}]
[]
[]
[]
["59. DALIS","KVĖPAVIMO KONTŪRAI (SISTEMOS) PRIE PORTATYVINIO APARATO NEWPORT HT 50"]
[]
["Tiekėjo pasiūlymas:"]
["Nr.","Pavadinimas","Kiekis","Mato vienetas","Kaina be PVM, Eur","Suma be PVM, Eur","Siūlomi produktai"]
["59.","Kvėpavimo kontūrai (sistemos) prie portatyvinio aparato NewPort HT 50"]
["59.1.","Kvėpavimo kontūrai (sistemos) prie portatyvinio aparato NewPort HT 50",30,"vnt",null,{"$f":"IF(ISBLANK(E750),\"\", PRODUCT(C750,E750))","v":""}]
[null,null,null,null,"Suma be PVM",{"$f":"IF(F750=\"\",\"\",SUM(F750:F750))","v":""},{"$f":"IF(F750=\"\",\"Neužpildytos visos objektų kainos\",\"\")","v":"Neužpildytos visos objektų kainos"}]
[null,null,null,null,"PVM suma"]
[null,null,null,null,"Suma su PVM",{"$f":"IF(ISBLANK(F752), \"\", SUM(F751:F752))","v":""}]
[]
[]
[]
["60. DALIS","ORTOPEDINIAI SIŪLAI RAIŠČIAMS - SIUVIMO PRIEMONĖ"]
[]
["Tiekėjo pasiūlymas:"]
["Nr.","Pavadinimas","Kiekis","Mato vienetas","Kaina be PVM, Eur","Suma be PVM, Eur","Siūlomi produktai"]
["60.","Ortopediniai siūlai raiščiams - siuvimo priemonė"]
["60.1.","Ortopediniai siūlai raiščiams - siuvimo priemonė",150,"vnt",null,{"$f":"IF(ISBLANK(E762),\"\", PRODUCT(C762,E762))","v":""}]
[null,null,null,null,"Suma be PVM",{"$f":"IF(F762=\"\",\"\",SUM(F762:F762))","v":""},{"$f":"IF(F762=\"\",\"Neužpildytos visos objektų kainos\",\"\")","v":"Neužpildytos visos objektų kainos"}]
[null,null,null,null,"PVM suma"]
[null,null,null,null,"Suma su PVM",{"$f":"IF(ISBLANK(F764), \"\", SUM(F763:F764))","v":""}]
[]
[]
[]
["61. DALIS","PRIEMONĖ SKIRTA INFEKCIJOS GYDYMUI KAULUOSE IR MINKŠTUOSE AUDINIUOSE"]
[]
["Tiekėjo pasiūlymas:"]
["Nr.","Pavadinimas","Kiekis","Mato vienetas","Kaina be PVM, Eur","Suma be PVM, Eur","Siūlomi produktai"]
["61.","Priemonė skirta infekcijos gydymui kauluose ir minkštuose audiniuose"]
["61.1.","Priemonė skirta infekcijos gydymui kauluose ir minkštuose audiniuose",10,"vnt",null,{"$f":"IF(ISBLANK(E774),\"\", PRODUCT(C774,E774))","v":""}]
[null,null,null,null,"Suma be PVM",{"$f":"IF(F774=\"\",\"\",SUM(F774:F774))","v":""},{"$f":"IF(F774=\"\",\"Neužpildytos visos objektų kainos\",\"\")","v":"Neužpildytos visos objektų kainos"}]
[null,null,null,null,"PVM suma"]
[null,null,null,null,"Suma su PVM",{"$f":"IF(ISBLANK(F776), \"\", SUM(F775:F776))","v":""}]
[]
[]
[]
["62. DALIS","BIPOLIARINIAI ARTROSKOPINIAI ELEKTRODAI"]
[]
["Tiekėjo pasiūlymas:"]
["Nr.","Pavadinimas","Kiekis","Mato vienetas","Kaina be PVM, Eur","Suma be PVM, Eur","Siūlomi produktai"]
["62.","Bipoliariniai artroskopiniai elektrodai"]
["62.1.","Bipoliariniai artroskopiniai elektrodai",120,"vnt",null,{"$f":"IF(ISBLANK(E786),\"\", PRODUCT(C786,E786))","v":""}]
[null,null,null,null,"Suma be PVM",{"$f":"IF(F786=\"\",\"\",SUM(F786:F786))","v":""},{"$f":"IF(F786=\"\",\"Neužpildytos visos objektų kainos\",\"\")","v":"Neužpildytos visos objektų kainos"}]
[null,null,null,null,"PVM suma"]
[null,null,null,null,"Suma su PVM",{"$f":"IF(ISBLANK(F788), \"\", SUM(F787:F788))","v":""}]
[]
[]
[]
["63. DALIS","GRANULĖS 3,0 -4,0 MM"]
[]
["Tiekėjo pasiūlymas:"]
["Nr.","Pavadinimas","Kiekis","Mato vienetas","Kaina be PVM, Eur","Suma be PVM, Eur","Siūlomi produktai"]
["63.","Granulės 3,0 -4,0 mm"]
["63.1.","Granulės 3,0 -4,0 mm",65,"vnt",null,{"$f":"IF(ISBLANK(E798),\"\", PRODUCT(C798,E798))","v":""}]
[null,null,null,null,"Suma be PVM",{"$f":"IF(F798=\"\",\"\",SUM(F798:F798))","v":""},{"$f":"IF(F798=\"\",\"Neužpildytos visos objektų kainos\",\"\")","v":"Neužpildytos visos objektų kainos"}]
[null,null,null,null,"PVM suma"]
[null,null,null,null,"Suma su PVM",{"$f":"IF(ISBLANK(F800), \"\", SUM(F799:F800))","v":""}]
[]
[]
[]
["64. DALIS","GRANULĖS 3,0 -4,0 MM"]
[]
["Tiekėjo pasiūlymas:"]
["Nr.","Pavadinimas","Kiekis","Mato vienetas","Kaina be PVM, Eur","Suma be PVM, Eur","Siūlomi produktai"]
["64.","Granulės 3,0 -4,0 mm"]
["64.1.","Granulės 3,0 -4,0 mm",65,"vnt",null,{"$f":"IF(ISBLANK(E810),\"\", PRODUCT(C810,E810))","v":""}]
[null,null,null,null,"Suma be PVM",{"$f":"IF(F810=\"\",\"\",SUM(F810:F810))","v":""},{"$f":"IF(F810=\"\",\"Neužpildytos visos objektų kainos\",\"\")","v":"Neužpildytos visos objektų kainos"}]
[null,null,null,null,"PVM suma"]
[null,null,null,null,"Suma su PVM",{"$f":"IF(ISBLANK(F812), \"\", SUM(F811:F812))","v":""}]
[]
[]
[]
["65. DALIS","SIŪLINĖ JUOSTA SU ADATA"]
[]
["Tiekėjo pasiūlymas:"]
["Nr.","Pavadinimas","Kiekis","Mato vienetas","Kaina be PVM, Eur","Suma be PVM, Eur","Siūlomi produktai"]
["65.","Siūlinė juosta su adata"]
["65.1.","Siūlinė juosta su adata",50,"vnt",null,{"$f":"IF(ISBLANK(E822),\"\", PRODUCT(C822,E822))","v":""}]
[null,null,null,null,"Suma be PVM",{"$f":"IF(F822=\"\",\"\",SUM(F822:F822))","v":""},{"$f":"IF(F822=\"\",\"Neužpildytos visos objektų kainos\",\"\")","v":"Neužpildytos visos objektų kainos"}]
[null,null,null,null,"PVM suma"]
[null,null,null,null,"Suma su PVM",{"$f":"IF(ISBLANK(F824), \"\", SUM(F823:F824))","v":""}]
[]
[]
[]
["66. DALIS","ATSIURBĖJAI SEILIŲ"]
[]
["Tiekėjo pasiūlymas:"]
["Nr.","Pavadinimas","Kiekis","Mato vienetas","Kaina be PVM, Eur","Suma be PVM, Eur","Siūlomi produktai"]
["66.","Atsiurbėjai seilių"]
["66.1.","Atsiurbėjai seilių",30000,"vnt",null,{"$f":"IF(ISBLANK(E834),\"\", PRODUCT(C834,E834))","v":""}]
[null,null,null,null,"Suma be PVM",{"$f":"IF(F834=\"\",\"\",SUM(F834:F834))","v":""},{"$f":"IF(F834=\"\",\"Neužpildytos visos objektų kainos\",\"\")","v":"Neužpildytos visos objektų kainos"}]
[null,null,null,null,"PVM suma"]
[null,null,null,null,"Suma su PVM",{"$f":"IF(ISBLANK(F836), \"\", SUM(F835:F836))","v":""}]
[]
[]
[]
["67. DALIS","KATETERIAI FOLEY TIPO LATEKSINIAI"]
[]
["Tiekėjo pasiūlymas:"]
["Nr.","Pavadinimas","Kiekis","Mato vienetas","Kaina be PVM, Eur","Suma be PVM, Eur","Siūlomi produktai"]
["67.","Kateteriai Foley tipo lateksiniai"]
["67.1.","Kateteris Foley tipo CH14",2000,"vnt",null,{"$f":"IF(ISBLANK(E846),\"\", PRODUCT(C846,E846))","v":""}]
[null,null,null,null,"Suma be PVM",{"$f":"IF(F846=\"\",\"\",SUM(F846:F846))","v":""},{"$f":"IF(F846=\"\",\"Neužpildytos visos objektų kainos\",\"\")","v":"Neužpildytos visos objektų kainos"}]
[null,null,null,null,"PVM suma"]
[null,null,null,null,"Suma su PVM",{"$f":"IF(ISBLANK(F848), \"\", SUM(F847:F848))","v":""}]
[]
[]
[]
["68. DALIS","KVĖPAVIMO SISTEMOS"]
[]
["Tiekėjo pasiūlymas:"]
["Nr.","Pavadinimas","Kiekis","Mato vienetas","Kaina be PVM, Eur","Suma be PVM, Eur","Siūlomi produktai"]
["68.","Kvėpavimo sistemos"]
["68.1.","Sistema kvėpavimo suaugusiems",500,"vnt",null,{"$f":"IF(ISBLANK(E858),\"\", PRODUCT(C858,E858))","v":""}]
["68.2.","Sistema kvėpavimo suaugusiems 1,8m ilgio su rezerviniu maišu",600,"vnt",null,{"$f":"IF(ISBLANK(E859),\"\", PRODUCT(C859,E859))","v":""}]
[null,null,null,null,"Suma be PVM",{"$f":"IF((SUMPRODUCT(--(F858:F859=\"\"))>0), \"\", SUM(F858:F859))","v":""},{"$f":"IF((SUMPRODUCT(--(F858:F859=\"\"))>0), \"Neužpildytos visų objektų kainos\", \"\")","v":"Neužpildytos visų objektų kainos"}]
[null,null,null,null,"PVM suma"]
[null,null,null,null,"Suma su PVM",{"$f":"IF(ISBLANK(F861), \"\", SUM(F860:F861))","v":""}]
[]
[]
[]
["69. DALIS","PASTA ODOS PARUOŠIMO"]
[]
["Tiekėjo pasiūlymas:"]
["Nr.","Pavadinimas","Kiekis","Mato vienetas","Kaina be PVM, Eur","Suma be PVM, Eur","Siūlomi produktai"]
["69.","Pasta odos paruošimo"]
["69.1.","Pasta odos paruošimo",3200,"g",null,{"$f":"IF(ISBLANK(E871),\"\", PRODUCT(C871,E871))","v":""}]
[null,null,null,null,"Suma be PVM",{"$f":"IF(F871=\"\",\"\",SUM(F871:F871))","v":""},{"$f":"IF(F871=\"\",\"Neužpildytos visos objektų kainos\",\"\")","v":"Neužpildytos visos objektų kainos"}]
[null,null,null,null,"PVM suma"]
[null,null,null,null,"Suma su PVM",{"$f":"IF(ISBLANK(F873), \"\", SUM(F872:F873))","v":""}]
[]
[]
[]
["70. DALIS","DRĖKINANTIS ŠAMPŪNAS GALVOS ODAI"]
[]
["Tiekėjo pasiūlymas:"]
["Nr.","Pavadinimas","Kiekis","Mato vienetas","Kaina be PVM, Eur","Suma be PVM, Eur","Siūlomi produktai"]
["70.","Drėkinantis šampūnas galvos odai"]
["70.1.","Drėkinantis šampūnas galvos odai 500ml ± 100 ml",100,"vnt",null,{"$f":"IF(ISBLANK(E883),\"\", PRODUCT(C883,E883))","v":""}]
[null,null,null,null,"Suma be PVM",{"$f":"IF(F883=\"\",\"\",SUM(F883:F883))","v":""},{"$f":"IF(F883=\"\",\"Neužpildytos visos objektų kainos\",\"\")","v":"Neužpildytos visos objektų kainos"}]
[null,null,null,null,"PVM suma"]
[null,null,null,null,"Suma su PVM",{"$f":"IF(ISBLANK(F885), \"\", SUM(F884:F885))","v":""}]
[]
[]
[]
["71. DALIS","AŠMENYS (CHIRURGINIAI OPERACIJOMS) SKALPERIAMS"]
[]
["Tiekėjo pasiūlymas:"]
["Nr.","Pavadinimas","Kiekis","Mato vienetas","Kaina be PVM, Eur","Suma be PVM, Eur","Siūlomi produktai"]
["71.","Ašmenys (chirurginiai operacijoms) skalperiams"]
["71.1.","Ašmenys skalperiams 10",1000,"vnt",null,{"$f":"IF(ISBLANK(E895),\"\", PRODUCT(C895,E895))","v":""}]
["71.2.","Ašmenys skalperiams 11",14000,"vnt",null,""]
["71.3.","Ašmenys skalperiams 15",10000,"vnt",null,""]
["71.4.","Ašmenys skalperiams 20",2000,"vnt",null,""]
["71.5.","Ašmenys skalperiams 21",6000,"vnt",null,""]
["71.6.","Ašmenys skalperiams 22",2000,"vnt",null,""]
["71.7.","Ašmenys skalperiams 23",11000,"vnt",null,""]
["71.8.","Ašmenys skalperiams 24",11000,"vnt",null,""]
["71.9.","Ašmenys skalperiams 25",1000,"vnt",null,""]
["71.10.","Ašmenų laikiklis",100,"vnt",null,""]
["71.11.","Ašmenų laikiklis",100,"vnt",null,""]
[null,null,null,null,"Suma be PVM",{"$f":"IF((SUMPRODUCT(--(F895:F905=\"\"))>0), \"\", SUM(F895:F905))","v":""},{"$f":"IF((SUMPRODUCT(--(F895:F905=\"\"))>0), \"Neužpildytos visų objektų kainos\", \"\")","v":"Neužpildytos visų objektų kainos"}]
[null,null,null,null,"PVM suma"]
[null,null,null,null,"Suma su PVM",{"$f":"IF(ISBLANK(F907), \"\", SUM(F906:F907))","v":""}]
[]
[]
[]
["72. DALIS","AŠMENYS SKALPELIAMS (PROCEDŪROMS)"]
[]
["Tiekėjo pasiūlymas:"]
["Nr.","Pavadinimas","Kiekis","Mato vienetas","Kaina be PVM, Eur","Suma be PVM, Eur","Siūlomi produktai"]
["72.","Ašmenys skalpeliams (procedūroms)"]
["72.1.","Ašmenys skalpeliams 10",3000,"vnt",null,{"$f":"IF(ISBLANK(E917),\"\", PRODUCT(C917,E917))","v":""}]
["72.2.","Ašmenys skalpeliams 11",3000,"vnt",null,""]
["72.3.","Ašmenys skalpeliams 15",3500,"vnt",null,""]
["72.4.","Ašmenys skalpeliams 20",2000,"vnt",null,""]
["72.5.","Ašmenys skalpeliams 23",18000,"vnt",null,""]
["72.6.","Ašmenys skalpeliams 24",8000,"vnt",null,""]
[null,null,null,null,"Suma be PVM",{"$f":"IF((SUMPRODUCT(--(F917:F922=\"\"))>0), \"\", SUM(F917:F922))","v":""},{"$f":"IF((SUMPRODUCT(--(F917:F922=\"\"))>0), \"Neužpildytos visų objektų kainos\", \"\")","v":"Neužpildytos visų objektų kainos"}]
[null,null,null,null,"PVM suma"]
[null,null,null,null,"Suma su PVM",{"$f":"IF(ISBLANK(F924), \"\", SUM(F923:F924))","v":""}]
[]
[]
[]
["73. DALIS","SKALPELIAI VIENKARTINIAI"]
[]
["Tiekėjo pasiūlymas:"]
["Nr.","Pavadinimas","Kiekis","Mato vienetas","Kaina be PVM, Eur","Suma be PVM, Eur","Siūlomi produktai"]
["73.","Skalpeliai vienkartiniai"]
["73.1.","Skalpeliai vienkartiniai 15",6000,"vnt",null,{"$f":"IF(ISBLANK(E934),\"\", PRODUCT(C934,E934))","v":""}]
[null,null,null,null,"Suma be PVM",{"$f":"IF(F934=\"\",\"\",SUM(F934:F934))","v":""},{"$f":"IF(F934=\"\",\"Neužpildytos visos objektų kainos\",\"\")","v":"Neužpildytos visos objektų kainos"}]
[null,null,null,null,"PVM suma"]
[null,null,null,null,"Suma su PVM",{"$f":"IF(ISBLANK(F936), \"\", SUM(F935:F936))","v":""}]
[]
[]
[]
["74. DALIS","GELEŽTĖS OSCILIUOJANČIO PJOVIMO PJŪKLUI"]
[]
["Tiekėjo pasiūlymas:"]
["Nr.","Pavadinimas","Kiekis","Mato vienetas","Kaina be PVM, Eur","Suma be PVM, Eur","Siūlomi produktai"]
["74.","Geležtės osciliuojančio pjovimo pjūklui"]
["74.1.","Geležtės osciliuojančio pjovimo pjūklui",100,"vnt",null,{"$f":"IF(ISBLANK(E946),\"\", PRODUCT(C946,E946))","v":""}]
["74.2.","Geležtės osciliuojančio pjovimo pjūklui",30,"vnt",null,""]
["74.3.","Geležtės osciliuojančio pjovimo pjūklui",30,"vnt",null,""]
["74.4.","Geležtės osciliuojančio pjovimo pjūklui",30,"vnt",null,""]
["74.5.","Geležtės osciliuojančio pjovimo pjūklui",60,"vnt",null,""]
["74.6.","Geležtės osciliuojančio pjovimo pjūklui",100,"vnt",null,""]
["74.7.","Geležtės osciliuojančio pjovimo pjūklui",80,"vnt",null,""]
["74.8.","Geležtės osciliuojančio pjovimo pjūklui",30,"vnt",null,""]
["74.9.","Geležtės osciliuojančio pjovimo pjūklui",120,"vnt",null,""]
["74.10.","Geležtės sagitalinio pjovimo pjūklui",50,"vnt",null,""]
[null,null,null,null,"Suma be PVM",{"$f":"IF((SUMPRODUCT(--(F946:F955=\"\"))>0), \"\", SUM(F946:F955))","v":""},{"$f":"IF((SUMPRODUCT(--(F946:F955=\"\"))>0), \"Neužpildytos visų objektų kainos\", \"\")","v":"Neužpildytos visų objektų kainos"}]
[null,null,null,null,"PVM suma"]
[null,null,null,null,"Suma su PVM",{"$f":"IF(ISBLANK(F957), \"\", SUM(F956:F957))","v":""}]
[]
[]
[]
["75. DALIS","ODOS ŽYMEKLIS/ MARKERIS"]
[]
["Tiekėjo pasiūlymas:"]
["Nr.","Pavadinimas","Kiekis","Mato vienetas","Kaina be PVM, Eur","Suma be PVM, Eur","Siūlomi produktai"]
["75.","Odos žymeklis/ Markeris"]
["75.1.","Odos žymeklis, sterilus, skirtas operacijų metu riboms ant odos žymėti",1200,"vnt",null,{"$f":"IF(ISBLANK(E967),\"\", PRODUCT(C967,E967))","v":""}]
[null,null,null,null,"Suma be PVM",{"$f":"IF(F967=\"\",\"\",SUM(F967:F967))","v":""},{"$f":"IF(F967=\"\",\"Neužpildytos visos objektų kainos\",\"\")","v":"Neužpildytos visos objektų kainos"}]
[null,null,null,null,"PVM suma"]
[null,null,null,null,"Suma su PVM",{"$f":"IF(ISBLANK(F969), \"\", SUM(F968:F969))","v":""}]
[]
[]
[]
["76. DALIS","ŠVIESOLAIDŽIAI LIPOLIZEI"]
[]
["Tiekėjo pasiūlymas:"]
["Nr.","Pavadinimas","Kiekis","Mato vienetas","Kaina be PVM, Eur","Suma be PVM, Eur","Siūlomi produktai"]
["76.","Šviesolaidžiai lipolizei"]
["76.1.","Šviesolaidžiai lipolizei. Daugkartiniai",50,"vnt",null,{"$f":"IF(ISBLANK(E979),\"\", PRODUCT(C979,E979))","v":""}]
[null,null,null,null,"Suma be PVM",{"$f":"IF(F979=\"\",\"\",SUM(F979:F979))","v":""},{"$f":"IF(F979=\"\",\"Neužpildytos visos objektų kainos\",\"\")","v":"Neužpildytos visos objektų kainos"}]
[null,null,null,null,"PVM suma"]
[null,null,null,null,"Suma su PVM",{"$f":"IF(ISBLANK(F981), \"\", SUM(F980:F981))","v":""}]
[]
[]
[]
["77. DALIS","ŠVIESOLAIDŽIAI LIPOLIZEI"]
[]
["Tiekėjo pasiūlymas:"]
["Nr.","Pavadinimas","Kiekis","Mato vienetas","Kaina be PVM, Eur","Suma be PVM, Eur","Siūlomi produktai"]
["77.","Šviesolaidžiai lipolizei"]
["77.1.","Šviesolaidžiai lipolizei",20,"vnt",null,{"$f":"IF(ISBLANK(E991),\"\", PRODUCT(C991,E991))","v":""}]
[null,null,null,null,"Suma be PVM",{"$f":"IF(F991=\"\",\"\",SUM(F991:F991))","v":""},{"$f":"IF(F991=\"\",\"Neužpildytos visos objektų kainos\",\"\")","v":"Neužpildytos visos objektų kainos"}]
[null,null,null,null,"PVM suma"]
[null,null,null,null,"Suma su PVM",{"$f":"IF(ISBLANK(F993), \"\", SUM(F992:F993))","v":""}]
[]
[]
[]
["78. DALIS","ŠVIESOLAIDŽIO RINKINYS LAZERIUI VENŲ VARIKOZĖMS GYDYTI"]
[]
["Tiekėjo pasiūlymas:"]
["Nr.","Pavadinimas","Kiekis","Mato vienetas","Kaina be PVM, Eur","Suma be PVM, Eur","Siūlomi produktai"]
["78.","Šviesolaidžio rinkinys lazeriui venų varikozėms gydyti"]
["78.1.","Šviesolaidžio rinkinys lazeriui venų varikozėms gydyti",150,"kompl",null,{"$f":"IF(ISBLANK(E1003),\"\", PRODUCT(C1003,E1003))","v":""}]
[null,null,null,null,"Suma be PVM",{"$f":"IF(F1003=\"\",\"\",SUM(F1003:F1003))","v":""},{"$f":"IF(F1003=\"\",\"Neužpildytos visos objektų kainos\",\"\")","v":"Neužpildytos visos objektų kainos"}]
[null,null,null,null,"PVM suma"]
[null,null,null,null,"Suma su PVM",{"$f":"IF(ISBLANK(F1005), \"\", SUM(F1004:F1005))","v":""}]
[]
[]
[]
["79. DALIS","VIENKARTINAI ARTROSKOPINIAI INTRUMENTAI"]
[]
["Tiekėjo pasiūlymas:"]
["Nr.","Pavadinimas","Kiekis","Mato vienetas","Kaina be PVM, Eur","Suma be PVM, Eur","Siūlomi produktai"]
["79.","Vienkartinai artroskopiniai intrumentai"]
["79.1.","Šeiveriai/borai Lawton artroskopinei šeiverio rankenai arba pateikti panaudai lygiavertę  artroskopinę šeiverio rankeną",130,"vnt",null,{"$f":"IF(ISBLANK(E1015),\"\", PRODUCT(C1015,E1015))","v":""}]
["79.2.","Šeiveriai/borai Conmed Linvatec artroskopinei šeiverio rankenai arba pateikti panaudai lygiavertę artroskopinę šeiverio rankaeną",130,"vnt",null,{"$f":"IF(ISBLANK(E1016),\"\", PRODUCT(C1016,E1016))","v":""}]
[null,null,null,null,"Suma be PVM",{"$f":"IF((SUMPRODUCT(--(F1015:F1016=\"\"))>0), \"\", SUM(F1015:F1016))","v":""},{"$f":"IF((SUMPRODUCT(--(F1015:F1016=\"\"))>0), \"Neužpildytos visų objektų kainos\", \"\")","v":"Neužpildytos visų objektų kainos"}]
[null,null,null,null,"PVM suma"]
[null,null,null,null,"Suma su PVM",{"$f":"IF(ISBLANK(F1018), \"\", SUM(F1017:F1018))","v":""}]
[]
[]
[]
["80. DALIS","PIRŠTINĖS ORTOPEDINĖS"]
[]
["Tiekėjo pasiūlymas:"]
["Nr.","Pavadinimas","Kiekis","Mato vienetas","Kaina be PVM, Eur","Suma be PVM, Eur","Siūlomi produktai"]
["80.","Pirštinės ortopedinės"]
["80.1.","Pirštinės ortopedinės Nr 6/6,5/7/7,5/8/8,5/9",20000,"pora",null,{"$f":"IF(ISBLANK(E1028),\"\", PRODUCT(C1028,E1028))","v":""}]
[null,null,null,null,"Suma be PVM",{"$f":"IF(F1028=\"\",\"\",SUM(F1028:F1028))","v":""},{"$f":"IF(F1028=\"\",\"Neužpildytos visos objektų kainos\",\"\")","v":"Neužpildytos visos objektų kainos"}]
[null,null,null,null,"PVM suma"]
[null,null,null,null,"Suma su PVM",{"$f":"IF(ISBLANK(F1030), \"\", SUM(F1029:F1030))","v":""}]
[]
[]
[]
["81. DALIS","PIRŠTINĖS ORTOPEDINĖS DVIGUBOS NR. 6/6,5/7/7,5/8/8,5/9"]
[]
["Tiekėjo pasiūlymas:"]
["Nr.","Pavadinimas","Kiekis","Mato vienetas","Kaina be PVM, Eur","Suma be PVM, Eur","Siūlomi produktai"]
["81.","Pirštinės ortopedinės dvigubos Nr. 6/6,5/7/7,5/8/8,5/9"]
["81.1.","Pirštinės ortopedinės dvigubos Nr. 6/6,5/7/7,5/8/8,5/9",3000,"kompl",null,{"$f":"IF(ISBLANK(E1040),\"\", PRODUCT(C1040,E1040))","v":""}]
[null,null,null,null,"Suma be PVM",{"$f":"IF(F1040=\"\",\"\",SUM(F1040:F1040))","v":""},{"$f":"IF(F1040=\"\",\"Neužpildytos visos objektų kainos\",\"\")","v":"Neužpildytos visos objektų kainos"}]
[null,null,null,null,"PVM suma"]
[null,null,null,null,"Suma su PVM",{"$f":"IF(ISBLANK(F1042), \"\", SUM(F1041:F1042))","v":""}]
[]
[]
[]
["82. DALIS","PIRŠTINĖS GINEKOLOGINĖS"]
[]
["Tiekėjo pasiūlymas:"]
["Nr.","Pavadinimas","Kiekis","Mato vienetas","Kaina be PVM, Eur","Suma be PVM, Eur","Siūlomi produktai"]
["82.","Pirštinės ginekologinės"]
["82.1.","Pirštinės ginekologinės S/M/L",600,"pora",null,{"$f":"IF(ISBLANK(E1052),\"\", PRODUCT(C1052,E1052))","v":""}]
[null,null,null,null,"Suma be PVM",{"$f":"IF(F1052=\"\",\"\",SUM(F1052:F1052))","v":""},{"$f":"IF(F1052=\"\",\"Neužpildytos visos objektų kainos\",\"\")","v":"Neužpildytos visos objektų kainos"}]
[null,null,null,null,"PVM suma"]
[null,null,null,null,"Suma su PVM",{"$f":"IF(ISBLANK(F1054), \"\", SUM(F1053:F1054))","v":""}]
[]
[]
[]
["83. DALIS","PIRŠTINĖS KOPOLIMERINĖS"]
[]
["Tiekėjo pasiūlymas:"]
["Nr.","Pavadinimas","Kiekis","Mato vienetas","Kaina be PVM, Eur","Suma be PVM, Eur","Siūlomi produktai"]
["83.","Pirštinės kopolimerinės"]
["83.1.","Pirštinės kopolimerinės S/M/L",1000,"pora",null,{"$f":"IF(ISBLANK(E1064),\"\", PRODUCT(C1064,E1064))","v":""}]
[null,null,null,null,"Suma be PVM",{"$f":"IF(F1064=\"\",\"\",SUM(F1064:F1064))","v":""},{"$f":"IF(F1064=\"\",\"Neužpildytos visos objektų kainos\",\"\")","v":"Neužpildytos visos objektų kainos"}]
[null,null,null,null,"PVM suma"]
[null,null,null,null,"Suma su PVM",{"$f":"IF(ISBLANK(F1066), \"\", SUM(F1065:F1066))","v":""}]
[]
[]
[]
["84. DALIS","SPECIALIOSIOS PIRŠTINĖS"]
[]
["Tiekėjo pasiūlymas:"]
["Nr.","Pavadinimas","Kiekis","Mato vienetas","Kaina be PVM, Eur","Suma be PVM, Eur","Siūlomi produktai"]
["84.","Specialiosios pirštinės"]
["84.1.","Hipoalerginės chirurginės pirštinės",50000,"pora",null,{"$f":"IF(ISBLANK(E1076),\"\", PRODUCT(C1076,E1076))","v":""}]
["84.2.","Hipoalerginės chirurginės pirštinės paplonintais pirštų galais",8000,"pora",null,{"$f":"IF(ISBLANK(E1077),\"\", PRODUCT(C1077,E1077))","v":""}]
[null,null,null,null,"Suma be PVM",{"$f":"IF((SUMPRODUCT(--(F1076:F1077=\"\"))>0), \"\", SUM(F1076:F1077))","v":""},{"$f":"IF((SUMPRODUCT(--(F1076:F1077=\"\"))>0), \"Neužpildytos visų objektų kainos\", \"\")","v":"Neužpildytos visų objektų kainos"}]
[null,null,null,null,"PVM suma"]
[null,null,null,null,"Suma su PVM",{"$f":"IF(ISBLANK(F1079), \"\", SUM(F1078:F1079))","v":""}]
[]
[]
[]
["85. DALIS","SPECIALIOSIOS MIKROCHIRURGINĖS PIRŠTINĖS"]
[]
["Tiekėjo pasiūlymas:"]
["Nr.","Pavadinimas","Kiekis","Mato vienetas","Kaina be PVM, Eur","Suma be PVM, Eur","Siūlomi produktai"]
["85.","Specialiosios mikrochirurginės pirštinės"]
["85.1.","Pirštinės mikrochirurginės be pudros",4000,"pora",null,{"$f":"IF(ISBLANK(E1089),\"\", PRODUCT(C1089,E1089))","v":""}]
["85.2.","Pirštinės chirurginės sintetinės be pudros",800,"pora",null,{"$f":"IF(ISBLANK(E1090),\"\", PRODUCT(C1090,E1090))","v":""}]
["85.3.","Pirštinės chirurginės su paviršiaus pažeidimo vietą išryškinančia sistema",3000,"pora",null,{"$f":"IF(ISBLANK(E1091),\"\", PRODUCT(C1091,E1091))","v":""}]
[null,null,null,null,"Suma be PVM",{"$f":"IF((SUMPRODUCT(--(F1089:F1091=\"\"))>0), \"\", SUM(F1089:F1091))","v":""},{"$f":"IF((SUMPRODUCT(--(F1089:F1091=\"\"))>0), \"Neužpildytos visų objektų kainos\", \"\")","v":"Neužpildytos visų objektų kainos"}]
[null,null,null,null,"PVM suma"]
[null,null,null,null,"Suma su PVM",{"$f":"IF(ISBLANK(F1093), \"\", SUM(F1092:F1093))","v":""}]
[]
[]
[]
["86. DALIS","APSAUGINĖ PRILAIKOMOJI PIRŠTINĖ"]
[]
["Tiekėjo pasiūlymas:"]
["Nr.","Pavadinimas","Kiekis","Mato vienetas","Kaina be PVM, Eur","Suma be PVM, Eur","Siūlomi produktai"]
["86.","Apsauginė prilaikomoji pirštinė"]
["86.1.","Apsauginė prilaikomoji pirštinė M",20,"vnt",null,{"$f":"IF(ISBLANK(E1103),\"\", PRODUCT(C1103,E1103))","v":""}]
["86.2.","Apsauginė prilaikomoji pirštinė L",200,"vnt",null,{"$f":"IF(ISBLANK(E1104),\"\", PRODUCT(C1104,E1104))","v":""}]
[null,null,null,null,"Suma be PVM",{"$f":"IF((SUMPRODUCT(--(F1103:F1104=\"\"))>0), \"\", SUM(F1103:F1104))","v":""},{"$f":"IF((SUMPRODUCT(--(F1103:F1104=\"\"))>0), \"Neužpildytos visų objektų kainos\", \"\")","v":"Neužpildytos visų objektų kainos"}]
[null,null,null,null,"PVM suma"]
[null,null,null,null,"Suma su PVM",{"$f":"IF(ISBLANK(F1106), \"\", SUM(F1105:F1106))","v":""}]
[]
[]
[]
["87. DALIS","APKLOTAI VIENKARTINIAI"]
[]
["Tiekėjo pasiūlymas:"]
["Nr.","Pavadinimas","Kiekis","Mato vienetas","Kaina be PVM, Eur","Suma be PVM, Eur","Siūlomi produktai"]
["87.","Apklotai vienkartiniai"]
["87.1.","Apklotai vienkartiniai sterilūs",600,"vnt",null,{"$f":"IF(ISBLANK(E1116),\"\", PRODUCT(C1116,E1116))","v":""}]
[null,null,null,null,"Suma be PVM",{"$f":"IF(F1116=\"\",\"\",SUM(F1116:F1116))","v":""},{"$f":"IF(F1116=\"\",\"Neužpildytos visos objektų kainos\",\"\")","v":"Neužpildytos visos objektų kainos"}]
[null,null,null,null,"PVM suma"]
[null,null,null,null,"Suma su PVM",{"$f":"IF(ISBLANK(F1118), \"\", SUM(F1117:F1118))","v":""}]
[]
[]
[]
["88. DALIS","RINKINYS SPINALINEI PUNKCIJAI"]
[]
["Tiekėjo pasiūlymas:"]
["Nr.","Pavadinimas","Kiekis","Mato vienetas","Kaina be PVM, Eur","Suma be PVM, Eur","Siūlomi produktai"]
["88.","Rinkinys spinalinei punkcijai"]
["88.1.","Rinkinys spinalinei punkcijai sterilus (vienkartinis)",8500,"vnt",null,{"$f":"IF(ISBLANK(E1128),\"\", PRODUCT(C1128,E1128))","v":""}]
[null,null,null,null,"Suma be PVM",{"$f":"IF(F1128=\"\",\"\",SUM(F1128:F1128))","v":""},{"$f":"IF(F1128=\"\",\"Neužpildytos visos objektų kainos\",\"\")","v":"Neužpildytos visos objektų kainos"}]
[null,null,null,null,"PVM suma"]
[null,null,null,null,"Suma su PVM",{"$f":"IF(ISBLANK(F1130), \"\", SUM(F1129:F1130))","v":""}]
[]
[]
[]
["89. DALIS","KEPURAITĖ MEDICININĖ"]
[]
["Tiekėjo pasiūlymas:"]
["Nr.","Pavadinimas","Kiekis","Mato vienetas","Kaina be PVM, Eur","Suma be PVM, Eur","Siūlomi produktai"]
["89.","Kepuraitė medicininė"]
["89.1.","Kepuraitė medicininė",200000,"vnt",null,{"$f":"IF(ISBLANK(E1140),\"\", PRODUCT(C1140,E1140))","v":""}]
[null,null,null,null,"Suma be PVM",{"$f":"IF(F1140=\"\",\"\",SUM(F1140:F1140))","v":""},{"$f":"IF(F1140=\"\",\"Neužpildytos visos objektų kainos\",\"\")","v":"Neužpildytos visos objektų kainos"}]
[null,null,null,null,"PVM suma"]
[null,null,null,null,"Suma su PVM",{"$f":"IF(ISBLANK(F1142), \"\", SUM(F1141:F1142))","v":""}]
[]
[]
[]
["90. DALIS","KEPURAITĖ MEDICININĖ"]
[]
["Tiekėjo pasiūlymas:"]
["Nr.","Pavadinimas","Kiekis","Mato vienetas","Kaina be PVM, Eur","Suma be PVM, Eur","Siūlomi produktai"]
["90.","Kepuraitė medicininė"]
["90.1.","Kepuraitė medicininė",13000,"vnt",null,{"$f":"IF(ISBLANK(E1152),\"\", PRODUCT(C1152,E1152))","v":""}]
[null,null,null,null,"Suma be PVM",{"$f":"IF(F1152=\"\",\"\",SUM(F1152:F1152))","v":""},{"$f":"IF(F1152=\"\",\"Neužpildytos visos objektų kainos\",\"\")","v":"Neužpildytos visos objektų kainos"}]
[null,null,null,null,"PVM suma"]
[null,null,null,null,"Suma su PVM",{"$f":"IF(ISBLANK(F1154), \"\", SUM(F1153:F1154))","v":""}]
[]
[]
[]
["91. DALIS","KEPURAITĖ MEDICININĖ SU JUOSTA NUO PRAKAITO"]
[]
["Tiekėjo pasiūlymas:"]
["Nr.","Pavadinimas","Kiekis","Mato vienetas","Kaina be PVM, Eur","Suma be PVM, Eur","Siūlomi produktai"]
["91.","Kepuraitė medicininė su juosta nuo prakaito"]
["91.1.","Kepuraitė medicininė su juosta nuo prakaito",12000,"vnt",null,{"$f":"IF(ISBLANK(E1164),\"\", PRODUCT(C1164,E1164))","v":""}]
[null,null,null,null,"Suma be PVM",{"$f":"IF(F1164=\"\",\"\",SUM(F1164:F1164))","v":""},{"$f":"IF(F1164=\"\",\"Neužpildytos visos objektų kainos\",\"\")","v":"Neužpildytos visos objektų kainos"}]
[null,null,null,null,"PVM suma"]
[null,null,null,null,"Suma su PVM",{"$f":"IF(ISBLANK(F1166), \"\", SUM(F1165:F1166))","v":""}]
[]
[]
[]
["92. DALIS","KEPURAITĖ ILGOMS OPERACIJOMS"]
[]
["Tiekėjo pasiūlymas:"]
["Nr.","Pavadinimas","Kiekis","Mato vienetas","Kaina be PVM, Eur","Suma be PVM, Eur","Siūlomi produktai"]
["92.","Kepuraitė ilgoms operacijoms"]
["92.1.","Kepuraitė ilgoms operacijoms",8000,"vnt",null,{"$f":"IF(ISBLANK(E1176),\"\", PRODUCT(C1176,E1176))","v":""}]
[null,null,null,null,"Suma be PVM",{"$f":"IF(F1176=\"\",\"\",SUM(F1176:F1176))","v":""},{"$f":"IF(F1176=\"\",\"Neužpildytos visos objektų kainos\",\"\")","v":"Neužpildytos visos objektų kainos"}]
[null,null,null,null,"PVM suma"]
[null,null,null,null,"Suma su PVM",{"$f":"IF(ISBLANK(F1178), \"\", SUM(F1177:F1178))","v":""}]
[]
[]
[]
["93. DALIS","KAUKĖ SU SKYDELIU"]
[]
["Tiekėjo pasiūlymas:"]
["Nr.","Pavadinimas","Kiekis","Mato vienetas","Kaina be PVM, Eur","Suma be PVM, Eur","Siūlomi produktai"]
["93.","Kaukė su skydeliu"]
["93.1.","Kaukė su skydeliu",2000,"vnt",null,{"$f":"IF(ISBLANK(E1188),\"\", PRODUCT(C1188,E1188))","v":""}]
[null,null,null,null,"Suma be PVM",{"$f":"IF(F1188=\"\",\"\",SUM(F1188:F1188))","v":""},{"$f":"IF(F1188=\"\",\"Neužpildytos visos objektų kainos\",\"\")","v":"Neužpildytos visos objektų kainos"}]
[null,null,null,null,"PVM suma"]
[null,null,null,null,"Suma su PVM",{"$f":"IF(ISBLANK(F1190), \"\", SUM(F1189:F1190))","v":""}]
[]
[]
[]
["94. DALIS","KAUKĖ (SU ANTIFOG JUOSTA)"]
[]
["Tiekėjo pasiūlymas:"]
["Nr.","Pavadinimas","Kiekis","Mato vienetas","Kaina be PVM, Eur","Suma be PVM, Eur","Siūlomi produktai"]
["94.","Kaukė (su antifog juosta)"]
["94.1.","Kaukė (su antifog juosta)",4000,"vnt",null,{"$f":"IF(ISBLANK(E1200),\"\", PRODUCT(C1200,E1200))","v":""}]
[null,null,null,null,"Suma be PVM",{"$f":"IF(F1200=\"\",\"\",SUM(F1200:F1200))","v":""},{"$f":"IF(F1200=\"\",\"Neužpildytos visos objektų kainos\",\"\")","v":"Neužpildytos visos objektų kainos"}]
[null,null,null,null,"PVM suma"]
[null,null,null,null,"Suma su PVM",{"$f":"IF(ISBLANK(F1202), \"\", SUM(F1201:F1202))","v":""}]
[]
[]
[]
["95. DALIS","UŽVALKALAI KAMERAI 15CM ±1 CM X 240-250CM"]
[]
["Tiekėjo pasiūlymas:"]
["Nr.","Pavadinimas","Kiekis","Mato vienetas","Kaina be PVM, Eur","Suma be PVM, Eur","Siūlomi produktai"]
["95.","Užvalkalai kamerai 15cm ±1 cm x 240-250cm"]
["95.1.","Užvalkalai kamerai 15cm ±1 cm x 240-250cm",10000,"vnt",null,{"$f":"IF(ISBLANK(E1212),\"\", PRODUCT(C1212,E1212))","v":""}]
[null,null,null,null,"Suma be PVM",{"$f":"IF(F1212=\"\",\"\",SUM(F1212:F1212))","v":""},{"$f":"IF(F1212=\"\",\"Neužpildytos visos objektų kainos\",\"\")","v":"Neužpildytos visos objektų kainos"}]
[null,null,null,null,"PVM suma"]
[null,null,null,null,"Suma su PVM",{"$f":"IF(ISBLANK(F1214), \"\", SUM(F1213:F1214))","v":""}]
[]
[]
[]
["96. DALIS","PAKLOTŲ RINKINYS OPERACINIAM STALUI."]
[]
["Tiekėjo pasiūlymas:"]
["Nr.","Pavadinimas","Kiekis","Mato vienetas","Kaina be PVM, Eur","Suma be PVM, Eur","Siūlomi produktai"]
["96.","Paklotų rinkinys operaciniam stalui."]
["96.1.","Paklotų rinkinys operaciniam stalui.",5000,"vnt",null,{"$f":"IF(ISBLANK(E1224),\"\", PRODUCT(C1224,E1224))","v":""}]
[null,null,null,null,"Suma be PVM",{"$f":"IF(F1224=\"\",\"\",SUM(F1224:F1224))","v":""},{"$f":"IF(F1224=\"\",\"Neužpildytos visos objektų kainos\",\"\")","v":"Neužpildytos visos objektų kainos"}]
[null,null,null,null,"PVM suma"]
[null,null,null,null,"Suma su PVM",{"$f":"IF(ISBLANK(F1226), \"\", SUM(F1225:F1226))","v":""}]
[]
[]
[]
["97. DALIS","OPERACINIO LAUKO PLĖVELĖ"]
[]
["Tiekėjo pasiūlymas:"]
["Nr.","Pavadinimas","Kiekis","Mato vienetas","Kaina be PVM, Eur","Suma be PVM, Eur","Siūlomi produktai"]
["97.","Operacinio lauko plėvelė"]
["97.1.","Operacinio lauko plėvelė",500,"vnt",null,{"$f":"IF(ISBLANK(E1236),\"\", PRODUCT(C1236,E1236))","v":""}]
[null,null,null,null,"Suma be PVM",{"$f":"IF(F1236=\"\",\"\",SUM(F1236:F1236))","v":""},{"$f":"IF(F1236=\"\",\"Neužpildytos visos objektų kainos\",\"\")","v":"Neužpildytos visos objektų kainos"}]
[null,null,null,null,"PVM suma"]
[null,null,null,null,"Suma su PVM",{"$f":"IF(ISBLANK(F1238), \"\", SUM(F1237:F1238))","v":""}]
[]
[]
[]
["98. DALIS","ANTIMIKROBINĖ OPERACINIO LAUKO PLĖVELĖ"]
[]
["Tiekėjo pasiūlymas:"]
["Nr.","Pavadinimas","Kiekis","Mato vienetas","Kaina be PVM, Eur","Suma be PVM, Eur","Siūlomi produktai"]
["98.","Antimikrobinė operacinio lauko plėvelė"]
["98.1.","Antimikrobinė operacinio lauko plėvelė",8000,"vnt",null,{"$f":"IF(ISBLANK(E1248),\"\", PRODUCT(C1248,E1248))","v":""}]
[null,null,null,null,"Suma be PVM",{"$f":"IF(F1248=\"\",\"\",SUM(F1248:F1248))","v":""},{"$f":"IF(F1248=\"\",\"Neužpildytos visos objektų kainos\",\"\")","v":"Neužpildytos visos objektų kainos"}]
[null,null,null,null,"PVM suma"]
[null,null,null,null,"Suma su PVM",{"$f":"IF(ISBLANK(F1250), \"\", SUM(F1249:F1250))","v":""}]
[]
[]
[]
["99. DALIS","APKLOTAS OPERACINIO LAUKO"]
[]
["Tiekėjo pasiūlymas:"]
["Nr.","Pavadinimas","Kiekis","Mato vienetas","Kaina be PVM, Eur","Suma be PVM, Eur","Siūlomi produktai"]
["99.","Apklotas operacinio lauko"]
["99.1.","Apklotas operacinio lauko",1200,"vnt",null,{"$f":"IF(ISBLANK(E1260),\"\", PRODUCT(C1260,E1260))","v":""}]
[null,null,null,null,"Suma be PVM",{"$f":"IF(F1260=\"\",\"\",SUM(F1260:F1260))","v":""},{"$f":"IF(F1260=\"\",\"Neužpildytos visos objektų kainos\",\"\")","v":"Neužpildytos visos objektų kainos"}]
[null,null,null,null,"PVM suma"]
[null,null,null,null,"Suma su PVM",{"$f":"IF(ISBLANK(F1262), \"\", SUM(F1261:F1262))","v":""}]
[]
[]
[]
["100. DALIS","APKLOTAS OPERACINIO LAUKO"]
[]
["Tiekėjo pasiūlymas:"]
["Nr.","Pavadinimas","Kiekis","Mato vienetas","Kaina be PVM, Eur","Suma be PVM, Eur","Siūlomi produktai"]
["100.","Apklotas operacinio lauko"]
["100.1.","Apklotas operacinio lauko",3000,"vnt",null,{"$f":"IF(ISBLANK(E1272),\"\", PRODUCT(C1272,E1272))","v":""}]
[null,null,null,null,"Suma be PVM",{"$f":"IF(F1272=\"\",\"\",SUM(F1272:F1272))","v":""},{"$f":"IF(F1272=\"\",\"Neužpildytos visos objektų kainos\",\"\")","v":"Neužpildytos visos objektų kainos"}]
[null,null,null,null,"PVM suma"]
[null,null,null,null,"Suma su PVM",{"$f":"IF(ISBLANK(F1274), \"\", SUM(F1273:F1274))","v":""}]
[]
[]
[]
["101. DALIS","APKLOTAS OPERACINIO LAUKO"]
[]
["Tiekėjo pasiūlymas:"]
["Nr.","Pavadinimas","Kiekis","Mato vienetas","Kaina be PVM, Eur","Suma be PVM, Eur","Siūlomi produktai"]
["101.","Apklotas operacinio lauko"]
["101.1.","Apklotas operacinio lauko",6000,"vnt",null,{"$f":"IF(ISBLANK(E1284),\"\", PRODUCT(C1284,E1284))","v":""}]
[null,null,null,null,"Suma be PVM",{"$f":"IF(F1284=\"\",\"\",SUM(F1284:F1284))","v":""},{"$f":"IF(F1284=\"\",\"Neužpildytos visos objektų kainos\",\"\")","v":"Neužpildytos visos objektų kainos"}]
[null,null,null,null,"PVM suma"]
[null,null,null,null,"Suma su PVM",{"$f":"IF(ISBLANK(F1286), \"\", SUM(F1285:F1286))","v":""}]
[]
[]
[]
["102. DALIS","APKLOTAS OPERACINIO LAUKO 45 X 75 ± 2CM SU LIPNIA 6 X 8 CM ± 1CM ANGA"]
[]
["Tiekėjo pasiūlymas:"]
["Nr.","Pavadinimas","Kiekis","Mato vienetas","Kaina be PVM, Eur","Suma be PVM, Eur","Siūlomi produktai"]
["102.","Apklotas operacinio lauko 45 x 75 ± 2cm su lipnia 6 x 8 cm ± 1cm anga"]
["102.1.","Apklotas operacinio lauko 45 x 75 cm su lipnia 6 x 8 cm anga",1500,"vnt",null,{"$f":"IF(ISBLANK(E1296),\"\", PRODUCT(C1296,E1296))","v":""}]
[null,null,null,null,"Suma be PVM",{"$f":"IF(F1296=\"\",\"\",SUM(F1296:F1296))","v":""},{"$f":"IF(F1296=\"\",\"Neužpildytos visos objektų kainos\",\"\")","v":"Neužpildytos visos objektų kainos"}]
[null,null,null,null,"PVM suma"]
[null,null,null,null,"Suma su PVM",{"$f":"IF(ISBLANK(F1298), \"\", SUM(F1297:F1298))","v":""}]
[]
[]
[]
["103. DALIS","GIMDYMO APKLOTŲ RINKINYS"]
[]
["Tiekėjo pasiūlymas:"]
["Nr.","Pavadinimas","Kiekis","Mato vienetas","Kaina be PVM, Eur","Suma be PVM, Eur","Siūlomi produktai"]
["103.","Gimdymo apklotų rinkinys"]
["103.1.","Gimdymo apklotų rinkinys",5000,"vnt",null,{"$f":"IF(ISBLANK(E1308),\"\", PRODUCT(C1308,E1308))","v":""}]
[null,null,null,null,"Suma be PVM",{"$f":"IF(F1308=\"\",\"\",SUM(F1308:F1308))","v":""},{"$f":"IF(F1308=\"\",\"Neužpildytos visos objektų kainos\",\"\")","v":"Neužpildytos visos objektų kainos"}]
[null,null,null,null,"PVM suma"]
[null,null,null,null,"Suma su PVM",{"$f":"IF(ISBLANK(F1310), \"\", SUM(F1309:F1310))","v":""}]
[]
[]
[]
["104. DALIS","SPECIALIOS VIENKARTINĖS APSAUGOS PRIEMONĖS"]
[]
["Tiekėjo pasiūlymas:"]
["Nr.","Pavadinimas","Kiekis","Mato vienetas","Kaina be PVM, Eur","Suma be PVM, Eur","Siūlomi produktai"]
["104.","Specialios vienkartinės apsaugos priemonės"]
["104.1.","U formos apklotas 235 x 260 cm, plyšys 20 x 100 cm, skysčius sugerianti dalis ne mažiau 75 x 140 cm",4000,"vnt",null,{"$f":"IF(ISBLANK(E1320),\"\", PRODUCT(C1320,E1320))","v":""}]
[null,null,null,null,"Suma be PVM",{"$f":"IF(F1320=\"\",\"\",SUM(F1320:F1320))","v":""},{"$f":"IF(F1320=\"\",\"Neužpildytos visos objektų kainos\",\"\")","v":"Neužpildytos visos objektų kainos"}]
[null,null,null,null,"PVM suma"]
[null,null,null,null,"Suma su PVM",{"$f":"IF(ISBLANK(F1322), \"\", SUM(F1321:F1322))","v":""}]
[]
[]
[]
["105. DALIS","PRIEMONĖ SKIRTA INFEKCIJOS GYDYMUI KAULUOSE IR MINKŠTUOSE AUDINIUOSE"]
[]
["Tiekėjo pasiūlymas:"]
["Nr.","Pavadinimas","Kiekis","Mato vienetas","Kaina be PVM, Eur","Suma be PVM, Eur","Siūlomi produktai"]
["105.","Priemonė skirta infekcijos gydymui kauluose ir minkštuose audiniuose"]
["105.1.","Priemonė skirta infekcijos gydymui kauluose ir minkštuose audiniuose",20,"vnt",null,{"$f":"IF(ISBLANK(E1332),\"\", PRODUCT(C1332,E1332))","v":""}]
[null,null,null,null,"Suma be PVM",{"$f":"IF(F1332=\"\",\"\",SUM(F1332:F1332))","v":""},{"$f":"IF(F1332=\"\",\"Neužpildytos visos objektų kainos\",\"\")","v":"Neužpildytos visos objektų kainos"}]
[null,null,null,null,"PVM suma"]
[null,null,null,null,"Suma su PVM",{"$f":"IF(ISBLANK(F1334), \"\", SUM(F1333:F1334))","v":""}]
[]
[]
[]
["106. DALIS","CHIRURGINIO PJŪVIO UŽSIUVIMO PRIEMONĖ"]
[]
["Tiekėjo pasiūlymas:"]
["Nr.","Pavadinimas","Kiekis","Mato vienetas","Kaina be PVM, Eur","Suma be PVM, Eur","Siūlomi produktai"]
["106.","Chirurginio pjūvio užsiuvimo priemonė"]
["106.1.","Pjūviams iki 4 cm užsiūti",400,"vnt",null,{"$f":"IF(ISBLANK(E1344),\"\", PRODUCT(C1344,E1344))","v":""}]
["106.2.","Pjūviams iki 8 cm užsiūti",300,"vnt",null,{"$f":"IF(ISBLANK(E1345),\"\", PRODUCT(C1345,E1345))","v":""}]
["106.3.","Pjūviams iki 16 cm užsiūti",200,"vnt",null,{"$f":"IF(ISBLANK(E1346),\"\", PRODUCT(C1346,E1346))","v":""}]
["106.4.","Pjūviams iki 24 cm užsiūti",100,"vnt",null,{"$f":"IF(ISBLANK(E1347),\"\", PRODUCT(C1347,E1347))","v":""}]
[null,null,null,null,"Suma be PVM",{"$f":"IF((SUMPRODUCT(--(F1344:F1347=\"\"))>0), \"\", SUM(F1344:F1347))","v":""},{"$f":"IF((SUMPRODUCT(--(F1344:F1347=\"\"))>0), \"Neužpildytos visų objektų kainos\", \"\")","v":"Neužpildytos visų objektų kainos"}]
[null,null,null,null,"PVM suma"]
[null,null,null,null,"Suma su PVM",{"$f":"IF(ISBLANK(F1349), \"\", SUM(F1348:F1349))","v":""}]
[]
[]
[]
["107. DALIS","SIŪLAI RAIŠČIAMS – SIUVIMO PRIEMONĖ"]
[]
["Tiekėjo pasiūlymas:"]
["Nr.","Pavadinimas","Kiekis","Mato vienetas","Kaina be PVM, Eur","Suma be PVM, Eur","Siūlomi produktai"]
["107.","Siūlai raiščiams – siuvimo priemonė"]
["107.1.","Ø5(7,0 metric dydis)",60,"vnt",null,{"$f":"IF(ISBLANK(E1359),\"\", PRODUCT(C1359,E1359))","v":""}]
["107.2.","Ø2 (5,0 metric) Balta/juoda spalva",360,"vnt",null,{"$f":"IF(ISBLANK(E1360),\"\", PRODUCT(C1360,E1360))","v":""}]
["107.3.","2,0mm pločio",20,"vnt",null,{"$f":"IF(ISBLANK(E1361),\"\", PRODUCT(C1361,E1361))","v":""}]
[null,null,null,null,"Suma be PVM",{"$f":"IF((SUMPRODUCT(--(F1359:F1361=\"\"))>0), \"\", SUM(F1359:F1361))","v":""},{"$f":"IF((SUMPRODUCT(--(F1359:F1361=\"\"))>0), \"Neužpildytos visų objektų kainos\", \"\")","v":"Neužpildytos visų objektų kainos"}]
[null,null,null,null,"PVM suma"]
[null,null,null,null,"Suma su PVM",{"$f":"IF(ISBLANK(F1363), \"\", SUM(F1362:F1363))","v":""}]
[]
[]
[]
["108. DALIS","STERILIOS TRIKALCIO-FOSFATO (TCP)/KAULŲ PAKAITALAI"]
[]
["Tiekėjo pasiūlymas:"]
["Nr.","Pavadinimas","Kiekis","Mato vienetas","Kaina be PVM, Eur","Suma be PVM, Eur","Siūlomi produktai"]
["108.","Sterilios trikalcio-fosfato (TCP)/kaulų pakaitalai"]
["108.1.","Granulės",100,"vnt",null,{"$f":"IF(ISBLANK(E1373),\"\", PRODUCT(C1373,E1373))","v":""}]
["108.2.","Granulės",150,"vnt",null,{"$f":"IF(ISBLANK(E1374),\"\", PRODUCT(C1374,E1374))","v":""}]
["108.3.","Kaulų pakaitalų audinių formos:  stačiakampiai",30,"dėž",null,{"$f":"IF(ISBLANK(E1375),\"\", PRODUCT(C1375,E1375))","v":""}]
["108.4.","Kaulų pakaitalų audinių formos: cilindro, pleišto formos",30,"dėž",null,{"$f":"IF(ISBLANK(E1376),\"\", PRODUCT(C1376,E1376))","v":""}]
[null,null,null,null,"Suma be PVM",{"$f":"IF((SUMPRODUCT(--(F1373:F1376=\"\"))>0), \"\", SUM(F1373:F1376))","v":""},{"$f":"IF((SUMPRODUCT(--(F1373:F1376=\"\"))>0), \"Neužpildytos visų objektų kainos\", \"\")","v":"Neužpildytos visų objektų kainos"}]
[null,null,null,null,"PVM suma"]
[null,null,null,null,"Suma su PVM",{"$f":"IF(ISBLANK(F1378), \"\", SUM(F1377:F1378))","v":""}]
[]
[]
[]
["109. DALIS","STERILIOS HIDRIKSI APATITO (HAP) IR TRIKALCIO-FOSFATO GRANULĖS/KAULŲ PAKAITALAI"]
[]
["Tiekėjo pasiūlymas:"]
["Nr.","Pavadinimas","Kiekis","Mato vienetas","Kaina be PVM, Eur","Suma be PVM, Eur","Siūlomi produktai"]
["109.","Sterilios Hidriksi apatito (HAp) ir trikalcio-fosfato granulės/kaulų pakaitalai"]
["109.1.","Granulės",50,"vnt",null,{"$f":"IF(ISBLANK(E1388),\"\", PRODUCT(C1388,E1388))","v":""}]
["109.2.","Granulės",100,"vnt",null,{"$f":"IF(ISBLANK(E1389),\"\", PRODUCT(C1389,E1389))","v":""}]
["109.3.","Kaulų pakaitalų audinių formos: stačiakampiai",30,"dėž",null,{"$f":"IF(ISBLANK(E1390),\"\", PRODUCT(C1390,E1390))","v":""}]
["109.4.","Kaulų pakaitalų audinių formos: cilindro, pleišto formos",30,"dėž",null,{"$f":"IF(ISBLANK(E1391),\"\", PRODUCT(C1391,E1391))","v":""}]
[null,null,null,null,"Suma be PVM",{"$f":"IF((SUMPRODUCT(--(F1388:F1391=\"\"))>0), \"\", SUM(F1388:F1391))","v":""},{"$f":"IF((SUMPRODUCT(--(F1388:F1391=\"\"))>0), \"Neužpildytos visų objektų kainos\", \"\")","v":"Neužpildytos visų objektų kainos"}]
[null,null,null,null,"PVM suma"]
[null,null,null,null,"Suma su PVM",{"$f":"IF(ISBLANK(F1393), \"\", SUM(F1392:F1393))","v":""}]
[]
[]
[]
["110. DALIS","LAPAROSKOPINIŲ AUDINIŲ IŠĖMIMO MAIŠELIAI"]
[]
["Tiekėjo pasiūlymas:"]
["Nr.","Pavadinimas","Kiekis","Mato vienetas","Kaina be PVM, Eur","Suma be PVM, Eur","Siūlomi produktai"]
["110.","Laparoskopinių audinių išėmimo maišeliai"]
["110.1.","Laparoskopinių audinių išėmimo maišelis 200ml ± 50ml",60,"vnt",null,{"$f":"IF(ISBLANK(E1403),\"\", PRODUCT(C1403,E1403))","v":""}]
["110.2.","Laparoskopinių audinių išėmimo maišelis 400ml ± 50ml",60,"vnt",null,{"$f":"IF(ISBLANK(E1404),\"\", PRODUCT(C1404,E1404))","v":""}]
["110.3.","Laparoskopinių audinių išėmimo maišelis 800ml ± 50ml",60,"vnt",null,{"$f":"IF(ISBLANK(E1405),\"\", PRODUCT(C1405,E1405))","v":""}]
[null,null,null,null,"Suma be PVM",{"$f":"IF((SUMPRODUCT(--(F1403:F1405=\"\"))>0), \"\", SUM(F1403:F1405))","v":""},{"$f":"IF((SUMPRODUCT(--(F1403:F1405=\"\"))>0), \"Neužpildytos visų objektų kainos\", \"\")","v":"Neužpildytos visų objektų kainos"}]
[null,null,null,null,"PVM suma"]
[null,null,null,null,"Suma su PVM",{"$f":"IF(ISBLANK(F1407), \"\", SUM(F1406:F1407))","v":""}]
[]
[]
[]
["111. DALIS","IŠMATŲ RINKTUVŲ MAIŠELIAI"]
[]
["Tiekėjo pasiūlymas:"]
["Nr.","Pavadinimas","Kiekis","Mato vienetas","Kaina be PVM, Eur","Suma be PVM, Eur","Siūlomi produktai"]
["111.","Išmatų rinktuvų maišeliai"]
["111.1.","Išmatų rinktuvų maišeliai",100,"vnt",null,{"$f":"IF(ISBLANK(E1417),\"\", PRODUCT(C1417,E1417))","v":""}]
["111.2.","Išmatų rinktuvų plokštelės",100,"vnt",null,{"$f":"IF(ISBLANK(E1418),\"\", PRODUCT(C1418,E1418))","v":""}]
[null,null,null,null,"Suma be PVM",{"$f":"IF((SUMPRODUCT(--(F1417:F1418=\"\"))>0), \"\", SUM(F1417:F1418))","v":""},{"$f":"IF((SUMPRODUCT(--(F1417:F1418=\"\"))>0), \"Neužpildytos visų objektų kainos\", \"\")","v":"Neužpildytos visų objektų kainos"}]
[null,null,null,null,"PVM suma"]
[null,null,null,null,"Suma su PVM",{"$f":"IF(ISBLANK(F1420), \"\", SUM(F1419:F1420))","v":""}]
[]
[]
[]
["112. DALIS","APKLOTAS LIPNIU KRAŠTU 150X240 CM"]
[]
["Tiekėjo pasiūlymas:"]
["Nr.","Pavadinimas","Kiekis","Mato vienetas","Kaina be PVM, Eur","Suma be PVM, Eur","Siūlomi produktai"]
["112.","Apklotas lipniu kraštu 150x240 cm"]
["112.1.","Apklotas lipniu kraštu 150x240 cm",4000,"vnt",null,{"$f":"IF(ISBLANK(E1430),\"\", PRODUCT(C1430,E1430))","v":""}]
[null,null,null,null,"Suma be PVM",{"$f":"IF(F1430=\"\",\"\",SUM(F1430:F1430))","v":""},{"$f":"IF(F1430=\"\",\"Neužpildytos visos objektų kainos\",\"\")","v":"Neužpildytos visos objektų kainos"}]
[null,null,null,null,"PVM suma"]
[null,null,null,null,"Suma su PVM",{"$f":"IF(ISBLANK(F1432), \"\", SUM(F1431:F1432))","v":""}]
[]
[]
[]
["113. DALIS","OPERACINIO LAUKO PLĖVELĖ 55 X 45 CM, LIPNI DALIS 45 X 48 CM"]
[]
["Tiekėjo pasiūlymas:"]
["Nr.","Pavadinimas","Kiekis","Mato vienetas","Kaina be PVM, Eur","Suma be PVM, Eur","Siūlomi produktai"]
["113.","Operacinio lauko plėvelė 55 x 45 cm, lipni dalis 45 x 48 cm"]
["113.1.","Operacinio lauko plėvelė 55 x 45 cm ± 2cm, lipni dalis 45 x 48 cm ± 2cm",3500,"vnt",null,{"$f":"IF(ISBLANK(E1442),\"\", PRODUCT(C1442,E1442))","v":""}]
[null,null,null,null,"Suma be PVM",{"$f":"IF(F1442=\"\",\"\",SUM(F1442:F1442))","v":""},{"$f":"IF(F1442=\"\",\"Neužpildytos visos objektų kainos\",\"\")","v":"Neužpildytos visos objektų kainos"}]
[null,null,null,null,"PVM suma"]
[null,null,null,null,"Suma su PVM",{"$f":"IF(ISBLANK(F1444), \"\", SUM(F1443:F1444))","v":""}]
[]
[]
[]
["114. DALIS","APKLOTŲ RINKINYS RANKOS OPERACIJOMS"]
[]
["Tiekėjo pasiūlymas:"]
["Nr.","Pavadinimas","Kiekis","Mato vienetas","Kaina be PVM, Eur","Suma be PVM, Eur","Siūlomi produktai"]
["114.","Apklotų rinkinys rankos operacijoms"]
["114.1.","Apklotų rinkinys rankos operacijoms",340,"vnt",null,{"$f":"IF(ISBLANK(E1454),\"\", PRODUCT(C1454,E1454))","v":""}]
[null,null,null,null,"Suma be PVM",{"$f":"IF(F1454=\"\",\"\",SUM(F1454:F1454))","v":""},{"$f":"IF(F1454=\"\",\"Neužpildytos visos objektų kainos\",\"\")","v":"Neužpildytos visos objektų kainos"}]
[null,null,null,null,"PVM suma"]
[null,null,null,null,"Suma su PVM",{"$f":"IF(ISBLANK(F1456), \"\", SUM(F1455:F1456))","v":""}]
[]
[]
[]
["115. DALIS","APKLOTŲ RINKINYS KLUBO SĄNARIO ENDOPROTEZAVIMUI"]
[]
["Tiekėjo pasiūlymas:"]
["Nr.","Pavadinimas","Kiekis","Mato vienetas","Kaina be PVM, Eur","Suma be PVM, Eur","Siūlomi produktai"]
["115.","Apklotų rinkinys klubo sąnario endoprotezavimui"]
["115.1.","Apklotų rinkinys klubo sąnario endoprotezavimui",800,"vnt",null,{"$f":"IF(ISBLANK(E1466),\"\", PRODUCT(C1466,E1466))","v":""}]
[null,null,null,null,"Suma be PVM",{"$f":"IF(F1466=\"\",\"\",SUM(F1466:F1466))","v":""},{"$f":"IF(F1466=\"\",\"Neužpildytos visos objektų kainos\",\"\")","v":"Neužpildytos visos objektų kainos"}]
[null,null,null,null,"PVM suma"]
[null,null,null,null,"Suma su PVM",{"$f":"IF(ISBLANK(F1468), \"\", SUM(F1467:F1468))","v":""}]
[]
[]
[]
["116. DALIS","APKLOTAS GALŪNĖMS 235X300 CM SU ELASTINE ANGA 7 CM, SKYSČIUS SUGERIANTI DALIS NE MAŽIAU 50 X 100 CM."]
[]
["Tiekėjo pasiūlymas:"]
["Nr.","Pavadinimas","Kiekis","Mato vienetas","Kaina be PVM, Eur","Suma be PVM, Eur","Siūlomi produktai"]
["116.","Apklotas galūnėms 235x300 cm su elastine anga 7 cm, skysčius sugerianti dalis ne mažiau 50 x 100 cm."]
["116.1.","Apklotas galūnėms 235x300 cm su elastine anga 7 cm, skysčius sugerianti dalis ne mažiau 50 x 100 cm.",9000,"vnt",null,{"$f":"IF(ISBLANK(E1478),\"\", PRODUCT(C1478,E1478))","v":""}]
[null,null,null,null,"Suma be PVM",{"$f":"IF(F1478=\"\",\"\",SUM(F1478:F1478))","v":""},{"$f":"IF(F1478=\"\",\"Neužpildytos visos objektų kainos\",\"\")","v":"Neužpildytos visos objektų kainos"}]
[null,null,null,null,"PVM suma"]
[null,null,null,null,"Suma su PVM",{"$f":"IF(ISBLANK(F1480), \"\", SUM(F1479:F1480))","v":""}]
[]
[]
[]
["117. DALIS","APKLOTŲ RINKINYS KELIO SĄNARIO ARTROSKOPIJAI"]
[]
["Tiekėjo pasiūlymas:"]
["Nr.","Pavadinimas","Kiekis","Mato vienetas","Kaina be PVM, Eur","Suma be PVM, Eur","Siūlomi produktai"]
["117.","Apklotų rinkinys kelio sąnario artroskopijai"]
["117.1.","Apklotų rinkinys kelio sąnario artroskopijai",800,"vnt",null,{"$f":"IF(ISBLANK(E1490),\"\", PRODUCT(C1490,E1490))","v":""}]
[null,null,null,null,"Suma be PVM",{"$f":"IF(F1490=\"\",\"\",SUM(F1490:F1490))","v":""},{"$f":"IF(F1490=\"\",\"Neužpildytos visos objektų kainos\",\"\")","v":"Neužpildytos visos objektų kainos"}]
[null,null,null,null,"PVM suma"]
[null,null,null,null,"Suma su PVM",{"$f":"IF(ISBLANK(F1492), \"\", SUM(F1491:F1492))","v":""}]
[]
[]
[]
["118. DALIS","APKLOTAS LIPNIU KRAŠTU 160 X 260 CM"]
[]
["Tiekėjo pasiūlymas:"]
["Nr.","Pavadinimas","Kiekis","Mato vienetas","Kaina be PVM, Eur","Suma be PVM, Eur","Siūlomi produktai"]
["118.","Apklotas lipniu kraštu 160 x 260 cm"]
["118.1.","Apklotas lipniu kraštu 160 x 260 cm",1600,"vnt",null,{"$f":"IF(ISBLANK(E1502),\"\", PRODUCT(C1502,E1502))","v":""}]
[null,null,null,null,"Suma be PVM",{"$f":"IF(F1502=\"\",\"\",SUM(F1502:F1502))","v":""},{"$f":"IF(F1502=\"\",\"Neužpildytos visos objektų kainos\",\"\")","v":"Neužpildytos visos objektų kainos"}]
[null,null,null,null,"PVM suma"]
[null,null,null,null,"Suma su PVM",{"$f":"IF(ISBLANK(F1504), \"\", SUM(F1503:F1504))","v":""}]
[]
[]
[]
["119. DALIS","PACIENTO PAKLOTŲ RINKINYS"]
[]
["Tiekėjo pasiūlymas:"]
["Nr.","Pavadinimas","Kiekis","Mato vienetas","Kaina be PVM, Eur","Suma be PVM, Eur","Siūlomi produktai"]
["119.","Paciento paklotų rinkinys"]
["119.1.","Paciento paklotas 370 x 300 cm",120,"vnt",null,{"$f":"IF(ISBLANK(E1514),\"\", PRODUCT(C1514,E1514))","v":""}]
[null,null,null,null,"Suma be PVM",{"$f":"IF(F1514=\"\",\"\",SUM(F1514:F1514))","v":""},{"$f":"IF(F1514=\"\",\"Neužpildytos visos objektų kainos\",\"\")","v":"Neužpildytos visos objektų kainos"}]
[null,null,null,null,"PVM suma"]
[null,null,null,null,"Suma su PVM",{"$f":"IF(ISBLANK(F1516), \"\", SUM(F1515:F1516))","v":""}]
[]
[]
[]
["120. DALIS","BIPOLIARINIAI ELEKTRODAI ARTROSKOPINEI PETIES IR KELIO SĄNARIŲ ELEKTROCHIRURGIJAI"]
[]
["Tiekėjo pasiūlymas:"]
["Nr.","Pavadinimas","Kiekis","Mato vienetas","Kaina be PVM, Eur","Suma be PVM, Eur","Siūlomi produktai"]
["120.","Bipoliariniai elektrodai artroskopinei peties ir kelio sąnarių elektrochirurgijai"]
["120.1.","Bipoliariniai elektrodai artroskopinei peties ir kelio sąnarių elektrochirurgijai",320,"vnt",null,{"$f":"IF(ISBLANK(E1526),\"\", PRODUCT(C1526,E1526))","v":""}]
[null,null,null,null,"Suma be PVM",{"$f":"IF(F1526=\"\",\"\",SUM(F1526:F1526))","v":""},{"$f":"IF(F1526=\"\",\"Neužpildytos visos objektų kainos\",\"\")","v":"Neužpildytos visos objektų kainos"}]
[null,null,null,null,"PVM suma"]
[null,null,null,null,"Suma su PVM",{"$f":"IF(ISBLANK(F1528), \"\", SUM(F1527:F1528))","v":""}]
[]
[]
[]
["121. DALIS","VIENKARTINIAI ARTROSKOPINIAI VAMZDELIAI"]
[]
["Tiekėjo pasiūlymas:"]
["Nr.","Pavadinimas","Kiekis","Mato vienetas","Kaina be PVM, Eur","Suma be PVM, Eur","Siūlomi produktai"]
["121.","Vienkartiniai artroskopiniai vamzdeliai"]
["121.1.","Vienkartiniai vamzdelių rinkiniai",500,"vnt",null,{"$f":"IF(ISBLANK(E1538),\"\", PRODUCT(C1538,E1538))","v":""}]
[null,null,null,null,"Suma be PVM",{"$f":"IF(F1538=\"\",\"\",SUM(F1538:F1538))","v":""},{"$f":"IF(F1538=\"\",\"Neužpildytos visos objektų kainos\",\"\")","v":"Neužpildytos visos objektų kainos"}]
[null,null,null,null,"PVM suma"]
[null,null,null,null,"Suma su PVM",{"$f":"IF(ISBLANK(F1540), \"\", SUM(F1539:F1540))","v":""}]
[]
[]
[]
["122. DALIS","BESIREZORBUOJANTI KALCIO FOSFATO PASTA KAULŲ DEFEKTAMS GYDYTI"]
[]
["Tiekėjo pasiūlymas:"]
["Nr.","Pavadinimas","Kiekis","Mato vienetas","Kaina be PVM, Eur","Suma be PVM, Eur","Siūlomi produktai"]
["122.","Besirezorbuojanti kalcio fosfato pasta kaulų defektams gydyti"]
["122.1.","Besirezorbuojanti kalcio fosfato pasta kaulų defektams gydyti",30,"vnt",null,{"$f":"IF(ISBLANK(E1550),\"\", PRODUCT(C1550,E1550))","v":""}]
["122.2.","Besirezorbuojanti kalcio fosfato pasta kaulų defektams gydyti",50,"vnt",null,{"$f":"IF(ISBLANK(E1551),\"\", PRODUCT(C1551,E1551))","v":""}]
["122.3.","Cemento inžektorius",2,"vnt",null,{"$f":"IF(ISBLANK(E1552),\"\", PRODUCT(C1552,E1552))","v":""}]
[null,null,null,null,"Suma be PVM",{"$f":"IF((SUMPRODUCT(--(F1550:F1552=\"\"))>0), \"\", SUM(F1550:F1552))","v":""},{"$f":"IF((SUMPRODUCT(--(F1550:F1552=\"\"))>0), \"Neužpildytos visų objektų kainos\", \"\")","v":"Neužpildytos visų objektų kainos"}]
[null,null,null,null,"PVM suma"]
[null,null,null,null,"Suma su PVM",{"$f":"IF(ISBLANK(F1554), \"\", SUM(F1553:F1554))","v":""}]
[]
[]
[]
["123. DALIS","ŠEIVERIAI BORAI VOLF ARTOSKOPINEI ŠEIVERIO RANKENAI"]
[]
["Tiekėjo pasiūlymas:"]
["Nr.","Pavadinimas","Kiekis","Mato vienetas","Kaina be PVM, Eur","Suma be PVM, Eur","Siūlomi produktai"]
["123.","Šeiveriai borai VOLF artoskopinei šeiverio rankenai"]
["123.1.","Šeiveriai borai VOLF artoskopinei šeiverio rankenai arba pateikti panaudai lygiavertę šeiverio rankeną",130,"vnt",null,{"$f":"IF(ISBLANK(E1564),\"\", PRODUCT(C1564,E1564))","v":""}]
[null,null,null,null,"Suma be PVM",{"$f":"IF(F1564=\"\",\"\",SUM(F1564:F1564))","v":""},{"$f":"IF(F1564=\"\",\"Neužpildytos visos objektų kainos\",\"\")","v":"Neužpildytos visos objektų kainos"}]
[null,null,null,null,"PVM suma"]
[null,null,null,null,"Suma su PVM",{"$f":"IF(ISBLANK(F1566), \"\", SUM(F1565:F1566))","v":""}]
[]
[]
[]
["124. DALIS","APKLOTŲ RINKINYS CEZARIO OPERACIJOMS"]
[]
["Tiekėjo pasiūlymas:"]
["Nr.","Pavadinimas","Kiekis","Mato vienetas","Kaina be PVM, Eur","Suma be PVM, Eur","Siūlomi produktai"]
["124.","Apklotų rinkinys Cezario operacijoms"]
["124.1.","Apklotų rinkinys Cezario operacijoms",1500,"vnt",null,{"$f":"IF(ISBLANK(E1576),\"\", PRODUCT(C1576,E1576))","v":""}]
[null,null,null,null,"Suma be PVM",{"$f":"IF(F1576=\"\",\"\",SUM(F1576:F1576))","v":""},{"$f":"IF(F1576=\"\",\"Neužpildytos visos objektų kainos\",\"\")","v":"Neužpildytos visos objektų kainos"}]
[null,null,null,null,"PVM suma"]
[null,null,null,null,"Suma su PVM",{"$f":"IF(ISBLANK(F1578), \"\", SUM(F1577:F1578))","v":""}]
[]
[]
[]
["125. DALIS","RAIČIŲ FIKSACINĖ SISTEMA"]
[]
["Tiekėjo pasiūlymas:"]
["Nr.","Pavadinimas","Kiekis","Mato vienetas","Kaina be PVM, Eur","Suma be PVM, Eur","Siūlomi produktai"]
["125.","Raičių fiksacinė sistema"]
["125.1.","Raičių fiksacinė sistema",600,"vnt",null,{"$f":"IF(ISBLANK(E1588),\"\", PRODUCT(C1588,E1588))","v":""}]
[null,null,null,null,"Suma be PVM",{"$f":"IF(F1588=\"\",\"\",SUM(F1588:F1588))","v":""},{"$f":"IF(F1588=\"\",\"Neužpildytos visos objektų kainos\",\"\")","v":"Neužpildytos visos objektų kainos"}]
[null,null,null,null,"PVM suma"]
[null,null,null,null,"Suma su PVM",{"$f":"IF(ISBLANK(F1590), \"\", SUM(F1589:F1590))","v":""}]
[]
[]
[]
["126. DALIS","REZEKCIJOS KILPA"]
[]
["Tiekėjo pasiūlymas:"]
["Nr.","Pavadinimas","Kiekis","Mato vienetas","Kaina be PVM, Eur","Suma be PVM, Eur","Siūlomi produktai"]
["126.","Rezekcijos kilpa"]
["126.1.","Pusmėnulio formos, tinkanti firmos Karl Storz rezektoskopui arba pateikti panaudai lygiavertį rezektoskopą",60,"vnt",null,{"$f":"IF(ISBLANK(E1600),\"\", PRODUCT(C1600,E1600))","v":""}]
[null,null,null,null,"Suma be PVM",{"$f":"IF(F1600=\"\",\"\",SUM(F1600:F1600))","v":""},{"$f":"IF(F1600=\"\",\"Neužpildytos visos objektų kainos\",\"\")","v":"Neužpildytos visos objektų kainos"}]
[null,null,null,null,"PVM suma"]
[null,null,null,null,"Suma su PVM",{"$f":"IF(ISBLANK(F1602), \"\", SUM(F1601:F1602))","v":""}]
[]
[]
[]
["127. DALIS","REZEKCIJOS KILPA"]
[]
["Tiekėjo pasiūlymas:"]
["Nr.","Pavadinimas","Kiekis","Mato vienetas","Kaina be PVM, Eur","Suma be PVM, Eur","Siūlomi produktai"]
["127.","Rezekcijos kilpa"]
["127.1.","Pusmėnulio formos, tinkanti firmos Olympus rezektoskopui arba pateikti panaudai lygiavertį rezektoskopą",20,"vnt",null,{"$f":"IF(ISBLANK(E1612),\"\", PRODUCT(C1612,E1612))","v":""}]
[null,null,null,null,"Suma be PVM",{"$f":"IF(F1612=\"\",\"\",SUM(F1612:F1612))","v":""},{"$f":"IF(F1612=\"\",\"Neužpildytos visos objektų kainos\",\"\")","v":"Neužpildytos visos objektų kainos"}]
[null,null,null,null,"PVM suma"]
[null,null,null,null,"Suma su PVM",{"$f":"IF(ISBLANK(F1614), \"\", SUM(F1613:F1614))","v":""}]
[]
[]
[]
["128. DALIS","REZEKCIJOS KILPA"]
[]
["Tiekėjo pasiūlymas:"]
["Nr.","Pavadinimas","Kiekis","Mato vienetas","Kaina be PVM, Eur","Suma be PVM, Eur","Siūlomi produktai"]
["128.","Rezekcijos kilpa"]
["128.1.","Pusmėnulio formos, tinkanti firmos Wolf rezektoskopui arba pateikti panaudai lygiavertį rezektoskopą",30,"vnt",null,{"$f":"IF(ISBLANK(E1624),\"\", PRODUCT(C1624,E1624))","v":""}]
[null,null,null,null,"Suma be PVM",{"$f":"IF(F1624=\"\",\"\",SUM(F1624:F1624))","v":""},{"$f":"IF(F1624=\"\",\"Neužpildytos visos objektų kainos\",\"\")","v":"Neužpildytos visos objektų kainos"}]
[null,null,null,null,"PVM suma"]
[null,null,null,null,"Suma su PVM",{"$f":"IF(ISBLANK(F1626), \"\", SUM(F1625:F1626))","v":""}]
[]
[]
[]
["129. DALIS","REZEKCIJOS VOLELIS"]
[]
["Tiekėjo pasiūlymas:"]
["Nr.","Pavadinimas","Kiekis","Mato vienetas","Kaina be PVM, Eur","Suma be PVM, Eur","Siūlomi produktai"]
["129.","Rezekcijos volelis"]
["129.1.","Cilindro formos, tinkanti firmos Karl Storz rezektoskopui arba pateikti panaudai lygiavertį rezektoskopą",20,"vnt",null,{"$f":"IF(ISBLANK(E1636),\"\", PRODUCT(C1636,E1636))","v":""}]
[null,null,null,null,"Suma be PVM",{"$f":"IF(F1636=\"\",\"\",SUM(F1636:F1636))","v":""},{"$f":"IF(F1636=\"\",\"Neužpildytos visos objektų kainos\",\"\")","v":"Neužpildytos visos objektų kainos"}]
[null,null,null,null,"PVM suma"]
[null,null,null,null,"Suma su PVM",{"$f":"IF(ISBLANK(F1638), \"\", SUM(F1637:F1638))","v":""}]
[]
[]
[]
["130. DALIS","REZEKCIJOS VOLELIS"]
[]
["Tiekėjo pasiūlymas:"]
["Nr.","Pavadinimas","Kiekis","Mato vienetas","Kaina be PVM, Eur","Suma be PVM, Eur","Siūlomi produktai"]
["130.","Rezekcijos volelis"]
["130.1.","Cilindro formos, tinkanti firmos Olympus rezektoskopu arba pateikti panaudai lygiavertį rezektoskopą",10,"vnt",null,{"$f":"IF(ISBLANK(E1648),\"\", PRODUCT(C1648,E1648))","v":""}]
[null,null,null,null,"Suma be PVM",{"$f":"IF(F1648=\"\",\"\",SUM(F1648:F1648))","v":""},{"$f":"IF(F1648=\"\",\"Neužpildytos visos objektų kainos\",\"\")","v":"Neužpildytos visos objektų kainos"}]
[null,null,null,null,"PVM suma"]
[null,null,null,null,"Suma su PVM",{"$f":"IF(ISBLANK(F1650), \"\", SUM(F1649:F1650))","v":""}]
[]
[]
[]
["131. DALIS","REZEKCIJOS VOLELIS"]
[]
["Tiekėjo pasiūlymas:"]
["Nr.","Pavadinimas","Kiekis","Mato vienetas","Kaina be PVM, Eur","Suma be PVM, Eur","Siūlomi produktai"]
["131.","Rezekcijos volelis"]
["131.1.","Cilindro formos, tinkanti firmos Wolf rezektoskopui arba pateikti panaudai lygiavertį rezektoskopą",10,"vnt",null,{"$f":"IF(ISBLANK(E1660),\"\", PRODUCT(C1660,E1660))","v":""}]
[null,null,null,null,"Suma be PVM",{"$f":"IF(F1660=\"\",\"\",SUM(F1660:F1660))","v":""},{"$f":"IF(F1660=\"\",\"Neužpildytos visos objektų kainos\",\"\")","v":"Neužpildytos visos objektų kainos"}]
[null,null,null,null,"PVM suma"]
[null,null,null,null,"Suma su PVM",{"$f":"IF(ISBLANK(F1662), \"\", SUM(F1661:F1662))","v":""}]
[]
[]
[]
["132. DALIS","VIELOS (PRIE REZEKTOSKOPO)"]
[]
["Tiekėjo pasiūlymas:"]
["Nr.","Pavadinimas","Kiekis","Mato vienetas","Kaina be PVM, Eur","Suma be PVM, Eur","Siūlomi produktai"]
["132.","Vielos (prie rezektoskopo)"]
["132.1.","Vielos (prie rezektoskopo)",20,"vnt",null,{"$f":"IF(ISBLANK(E1672),\"\", PRODUCT(C1672,E1672))","v":""}]
[null,null,null,null,"Suma be PVM",{"$f":"IF(F1672=\"\",\"\",SUM(F1672:F1672))","v":""},{"$f":"IF(F1672=\"\",\"Neužpildytos visos objektų kainos\",\"\")","v":"Neužpildytos visos objektų kainos"}]
[null,null,null,null,"PVM suma"]
[null,null,null,null,"Suma su PVM",{"$f":"IF(ISBLANK(F1674), \"\", SUM(F1673:F1674))","v":""}]
[]
[]
[]
["133. DALIS","RINKINYS APSAUGOJIMUI PRIEŠ OPTIKOS RASOJIMĄ ANTI-FOG"]
[]
["Tiekėjo pasiūlymas:"]
["Nr.","Pavadinimas","Kiekis","Mato vienetas","Kaina be PVM, Eur","Suma be PVM, Eur","Siūlomi produktai"]
["133.","Rinkinys apsaugojimui prieš optikos rasojimą Anti-fog"]
["133.1.","Rinkinys apsaugojimui prieš optikos rasojimą Anti-fog",1500,"vnt",null,{"$f":"IF(ISBLANK(E1684),\"\", PRODUCT(C1684,E1684))","v":""}]
[null,null,null,null,"Suma be PVM",{"$f":"IF(F1684=\"\",\"\",SUM(F1684:F1684))","v":""},{"$f":"IF(F1684=\"\",\"Neužpildytos visos objektų kainos\",\"\")","v":"Neužpildytos visos objektų kainos"}]
[null,null,null,null,"PVM suma"]
[null,null,null,null,"Suma su PVM",{"$f":"IF(ISBLANK(F1686), \"\", SUM(F1685:F1686))","v":""}]
[]
[]
[]
["134. DALIS","SKYSČIŲ PADAVIMO SISTEMA"]
[]
["Tiekėjo pasiūlymas:"]
["Nr.","Pavadinimas","Kiekis","Mato vienetas","Kaina be PVM, Eur","Suma be PVM, Eur","Siūlomi produktai"]
["134.","Skysčių padavimo sistema"]
["134.1.","Skysčių padavimo sistema",4,"vnt",null,{"$f":"IF(ISBLANK(E1696),\"\", PRODUCT(C1696,E1696))","v":""}]
[null,null,null,null,"Suma be PVM",{"$f":"IF(F1696=\"\",\"\",SUM(F1696:F1696))","v":""},{"$f":"IF(F1696=\"\",\"Neužpildytos visos objektų kainos\",\"\")","v":"Neužpildytos visos objektų kainos"}]
[null,null,null,null,"PVM suma"]
[null,null,null,null,"Suma su PVM",{"$f":"IF(ISBLANK(F1698), \"\", SUM(F1697:F1698))","v":""}]
[]
[]
[]
["135. DALIS","SLĖGINĖ MEMBRANA"]
[]
["Tiekėjo pasiūlymas:"]
["Nr.","Pavadinimas","Kiekis","Mato vienetas","Kaina be PVM, Eur","Suma be PVM, Eur","Siūlomi produktai"]
["135.","Slėginė membrana"]
["135.1.","Slėginė membrana",10,"vnt",null,{"$f":"IF(ISBLANK(E1708),\"\", PRODUCT(C1708,E1708))","v":""}]
[null,null,null,null,"Suma be PVM",{"$f":"IF(F1708=\"\",\"\",SUM(F1708:F1708))","v":""},{"$f":"IF(F1708=\"\",\"Neužpildytos visos objektų kainos\",\"\")","v":"Neužpildytos visos objektų kainos"}]
[null,null,null,null,"PVM suma"]
[null,null,null,null,"Suma su PVM",{"$f":"IF(ISBLANK(F1710), \"\", SUM(F1709:F1710))","v":""}]
[]
[]
[]
["136. DALIS","LAPAROSKOPINIAI MAIŠELIAI"]
[]
["Tiekėjo pasiūlymas:"]
["Nr.","Pavadinimas","Kiekis","Mato vienetas","Kaina be PVM, Eur","Suma be PVM, Eur","Siūlomi produktai"]
["136.","Laparoskopiniai maišeliai"]
["136.1.","Laparoskopiniai maišeliai",70,"vnt",null,{"$f":"IF(ISBLANK(E1720),\"\", PRODUCT(C1720,E1720))","v":""}]
[null,null,null,null,"Suma be PVM",{"$f":"IF(F1720=\"\",\"\",SUM(F1720:F1720))","v":""},{"$f":"IF(F1720=\"\",\"Neužpildytos visos objektų kainos\",\"\")","v":"Neužpildytos visos objektų kainos"}]
[null,null,null,null,"PVM suma"]
[null,null,null,null,"Suma su PVM",{"$f":"IF(ISBLANK(F1722), \"\", SUM(F1721:F1722))","v":""}]
[]
[]
[]
["137. DALIS","ODOS SIUVIMO APARATAI SU KABUČIŲ IŠĖMĖJAIS"]
[]
["Tiekėjo pasiūlymas:"]
["Nr.","Pavadinimas","Kiekis","Mato vienetas","Kaina be PVM, Eur","Suma be PVM, Eur","Siūlomi produktai"]
["137.","Odos siuvimo aparatai su kabučių išėmėjais"]
["137.1.","Odos siuvimo aparatai su kabučių išėmėjais",2500,"vnt",null,{"$f":"IF(ISBLANK(E1732),\"\", PRODUCT(C1732,E1732))","v":""}]
[null,null,null,null,"Suma be PVM",{"$f":"IF(F1732=\"\",\"\",SUM(F1732:F1732))","v":""},{"$f":"IF(F1732=\"\",\"Neužpildytos visos objektų kainos\",\"\")","v":"Neužpildytos visos objektų kainos"}]
[null,null,null,null,"PVM suma"]
[null,null,null,null,"Suma su PVM",{"$f":"IF(ISBLANK(F1734), \"\", SUM(F1733:F1734))","v":""}]
[]
[]
[]
["138. DALIS","LAPAROSKOPINIAI LAIDAI"]
[]
["Tiekėjo pasiūlymas:"]
["Nr.","Pavadinimas","Kiekis","Mato vienetas","Kaina be PVM, Eur","Suma be PVM, Eur","Siūlomi produktai"]
["138.","Laparoskopiniai laidai"]
["138.1.","Laparoskopiniai bipoliariniai laidai",100,"vnt",null,{"$f":"IF(ISBLANK(E1744),\"\", PRODUCT(C1744,E1744))","v":""}]
["138.2.","Laparoskopiniai monopoliariniai laidai",60,"vnt",null,{"$f":"IF(ISBLANK(E1745),\"\", PRODUCT(C1745,E1745))","v":""}]
[null,null,null,null,"Suma be PVM",{"$f":"IF((SUMPRODUCT(--(F1744:F1745=\"\"))>0), \"\", SUM(F1744:F1745))","v":""},{"$f":"IF((SUMPRODUCT(--(F1744:F1745=\"\"))>0), \"Neužpildytos visų objektų kainos\", \"\")","v":"Neužpildytos visų objektų kainos"}]
[null,null,null,null,"PVM suma"]
[null,null,null,null,"Suma su PVM",{"$f":"IF(ISBLANK(F1747), \"\", SUM(F1746:F1747))","v":""}]
[]
[]
[]
["139. DALIS","BIPOLIARINIAI PINCETAI IR PINCETŲ PRIJUNGIMO KABELIAI"]
[]
["Tiekėjo pasiūlymas:"]
["Nr.","Pavadinimas","Kiekis","Mato vienetas","Kaina be PVM, Eur","Suma be PVM, Eur","Siūlomi produktai"]
["139.","Bipoliariniai pincetai ir pincetų prijungimo kabeliai"]
["139.1.","Bipoliariniai laidai",300,"vnt",null,{"$f":"IF(ISBLANK(E1757),\"\", PRODUCT(C1757,E1757))","v":""}]
["139.2.","Pincetas bipoliarui",200,"vnt",null,{"$f":"IF(ISBLANK(E1758),\"\", PRODUCT(C1758,E1758))","v":""}]
[null,null,null,null,"Suma be PVM",{"$f":"IF((SUMPRODUCT(--(F1757:F1758=\"\"))>0), \"\", SUM(F1757:F1758))","v":""},{"$f":"IF((SUMPRODUCT(--(F1757:F1758=\"\"))>0), \"Neužpildytos visų objektų kainos\", \"\")","v":"Neužpildytos visų objektų kainos"}]
[null,null,null,null,"PVM suma"]
[null,null,null,null,"Suma su PVM",{"$f":"IF(ISBLANK(F1760), \"\", SUM(F1759:F1760))","v":""}]
[]
[]
[]
["140. DALIS","MONOPOLIARINIAI LAIDAI"]
[]
["Tiekėjo pasiūlymas:"]
["Nr.","Pavadinimas","Kiekis","Mato vienetas","Kaina be PVM, Eur","Suma be PVM, Eur","Siūlomi produktai"]
["140.","Monopoliariniai laidai"]
["140.1.","Monopoliariniai laidai",200,"vnt",null,{"$f":"IF(ISBLANK(E1770),\"\", PRODUCT(C1770,E1770))","v":""}]
[null,null,null,null,"Suma be PVM",{"$f":"IF(F1770=\"\",\"\",SUM(F1770:F1770))","v":""},{"$f":"IF(F1770=\"\",\"Neužpildytos visos objektų kainos\",\"\")","v":"Neužpildytos visos objektų kainos"}]
[null,null,null,null,"PVM suma"]
[null,null,null,null,"Suma su PVM",{"$f":"IF(ISBLANK(F1772), \"\", SUM(F1771:F1772))","v":""}]
[]
[]
[]
["141. DALIS","PRIEMONĖS TROAKARUI"]
[]
["Tiekėjo pasiūlymas:"]
["Nr.","Pavadinimas","Kiekis","Mato vienetas","Kaina be PVM, Eur","Suma be PVM, Eur","Siūlomi produktai"]
["141.","Priemonės troakarui"]
["141.1.","Guminė kepurėlė",100,"vnt",null,{"$f":"IF(ISBLANK(E1782),\"\", PRODUCT(C1782,E1782))","v":""}]
["141.2.","Guminė kepurėlė",100,"vnt",null,{"$f":"IF(ISBLANK(E1783),\"\", PRODUCT(C1783,E1783))","v":""}]
["141.3.","Trokarų kepurėlės",300,"vnt",null,{"$f":"IF(ISBLANK(E1784),\"\", PRODUCT(C1784,E1784))","v":""}]
["141.4.","Trokarų kepurėlės",1800,"vnt",null,{"$f":"IF(ISBLANK(E1785),\"\", PRODUCT(C1785,E1785))","v":""}]
[null,null,null,null,"Suma be PVM",{"$f":"IF((SUMPRODUCT(--(F1782:F1785=\"\"))>0), \"\", SUM(F1782:F1785))","v":""},{"$f":"IF((SUMPRODUCT(--(F1782:F1785=\"\"))>0), \"Neužpildytos visų objektų kainos\", \"\")","v":"Neužpildytos visų objektų kainos"}]
[null,null,null,null,"PVM suma"]
[null,null,null,null,"Suma su PVM",{"$f":"IF(ISBLANK(F1787), \"\", SUM(F1786:F1787))","v":""}]
[]
[]
[]
["142. DALIS","BIOLOGINIŲ SKYSČIŲ SIURBIMO SISTEMA"]
[]
["Tiekėjo pasiūlymas:"]
["Nr.","Pavadinimas","Kiekis","Mato vienetas","Kaina be PVM, Eur","Suma be PVM, Eur","Siūlomi produktai"]
["142.","Biologinių skysčių siurbimo sistema"]
["142.1.","Daugkartinio naudojimo skaidraus plastiko  medžiagos 2 litrų indas. Arba pateikti lygiavertį daugartinio naudojimo indą ir jam tinkančias visa sudėtines dalis  procedūrai atlikti.",20,"vnt",null,{"$f":"IF(ISBLANK(E1797),\"\", PRODUCT(C1797,E1797))","v":""}]
["142.2.","Vienkartinis 2 litrų skysčių surinkimo maišas su granulėmis",4620,"vnt",null,{"$f":"IF(ISBLANK(E1798),\"\", PRODUCT(C1798,E1798))","v":""}]
["142.3.","Jungiamoji žarnelė",2500,"vnt",null,{"$f":"IF(ISBLANK(E1799),\"\", PRODUCT(C1799,E1799))","v":""}]
["142.4.","T formos jungtis daugkartinio naudojimo plastikiniams indams",350,"vnt",null,{"$f":"IF(ISBLANK(E1800),\"\", PRODUCT(C1800,E1800))","v":""}]
["142.5.","Vežimėlis žemas",10,"vnt",null,{"$f":"IF(ISBLANK(E1801),\"\", PRODUCT(C1801,E1801))","v":""}]
[null,null,null,null,"Suma be PVM",{"$f":"IF((SUMPRODUCT(--(F1797:F1801=\"\"))>0), \"\", SUM(F1797:F1801))","v":""},{"$f":"IF((SUMPRODUCT(--(F1797:F1801=\"\"))>0), \"Neužpildytos visų objektų kainos\", \"\")","v":"Neužpildytos visų objektų kainos"}]
[null,null,null,null,"PVM suma"]
[null,null,null,null,"Suma su PVM",{"$f":"IF(ISBLANK(F1803), \"\", SUM(F1802:F1803))","v":""}]
[]
[]
[]
["143. DALIS","BIOLOGINIŲ SKYSČIŲ SIURBIMO SISTEMA"]
[]
["Tiekėjo pasiūlymas:"]
["Nr.","Pavadinimas","Kiekis","Mato vienetas","Kaina be PVM, Eur","Suma be PVM, Eur","Siūlomi produktai"]
["143.","Biologinių skysčių siurbimo sistema"]
["143.1.","Daugkartinio naudojimo skaidraus plastiko  medžiagos 3 litrų indas. Arba pateikti lygiavertį daugartinio naudojimo indą ir jam tinkančias visa sudėtines dalis  procedūrai atlikti.",10,"vnt",null,{"$f":"IF(ISBLANK(E1813),\"\", PRODUCT(C1813,E1813))","v":""}]
["143.2.","Vienkartinis 3 litrų skysčių surinkimo maišas su granulėmis",5000,"vnt",null,{"$f":"IF(ISBLANK(E1814),\"\", PRODUCT(C1814,E1814))","v":""}]
["143.3.","Surinkimo indų  laikiklis",10,"vnt",null,{"$f":"IF(ISBLANK(E1815),\"\", PRODUCT(C1815,E1815))","v":""}]
[null,null,null,null,"Suma be PVM",{"$f":"IF((SUMPRODUCT(--(F1813:F1815=\"\"))>0), \"\", SUM(F1813:F1815))","v":""},{"$f":"IF((SUMPRODUCT(--(F1813:F1815=\"\"))>0), \"Neužpildytos visų objektų kainos\", \"\")","v":"Neužpildytos visų objektų kainos"}]
[null,null,null,null,"PVM suma"]
[null,null,null,null,"Suma su PVM",{"$f":"IF(ISBLANK(F1817), \"\", SUM(F1816:F1817))","v":""}]
[]
[]
[]
["144. DALIS","AŠMENYS MCGRATH LARINGOSKOPUI"]
[]
["Tiekėjo pasiūlymas:"]
["Nr.","Pavadinimas","Kiekis","Mato vienetas","Kaina be PVM, Eur","Suma be PVM, Eur","Siūlomi produktai"]
["144.","Ašmenys MCGRATH laringoskopui"]
["144.1.","Ašmenys MCGRATH laringoskopui S3 350-005-000, arba pateikti lygiavertį laringoskopą panaudai",100,"vnt",null,{"$f":"IF(ISBLANK(E1827),\"\", PRODUCT(C1827,E1827))","v":""}]
["144.2.","Ašmenys MCGRATH laringoskopui S4 350-013-000, arba pateikti lygiavertį laringoskopą panaudai",100,"vnt",null,{"$f":"IF(ISBLANK(E1828),\"\", PRODUCT(C1828,E1828))","v":""}]
[null,null,null,null,"Suma be PVM",{"$f":"IF((SUMPRODUCT(--(F1827:F1828=\"\"))>0), \"\", SUM(F1827:F1828))","v":""},{"$f":"IF((SUMPRODUCT(--(F1827:F1828=\"\"))>0), \"Neužpildytos visų objektų kainos\", \"\")","v":"Neužpildytos visų objektų kainos"}]
[null,null,null,null,"PVM suma"]
[null,null,null,null,"Suma su PVM",{"$f":"IF(ISBLANK(F1830), \"\", SUM(F1829:F1830))","v":""}]
[]
[]
[]
["145. DALIS","GINEKOLOGINIS RINKINYS"]
[]
["Tiekėjo pasiūlymas:"]
["Nr.","Pavadinimas","Kiekis","Mato vienetas","Kaina be PVM, Eur","Suma be PVM, Eur","Siūlomi produktai"]
["145.","Ginekologinis rinkinys"]
["145.1.","Ginekologinis rinkinys",275,"vnt",null,{"$f":"IF(ISBLANK(E1840),\"\", PRODUCT(C1840,E1840))","v":""}]
[null,null,null,null,"Suma be PVM",{"$f":"IF(F1840=\"\",\"\",SUM(F1840:F1840))","v":""},{"$f":"IF(F1840=\"\",\"Neužpildytos visos objektų kainos\",\"\")","v":"Neužpildytos visos objektų kainos"}]
[null,null,null,null,"PVM suma"]
[null,null,null,null,"Suma su PVM",{"$f":"IF(ISBLANK(F1842), \"\", SUM(F1841:F1842))","v":""}]
[]
[]
[]
["146. DALIS","UNIVERSALUS OPERACINIO LAUKO APKLOTŲ RINKINYS"]
[]
["Tiekėjo pasiūlymas:"]
["Nr.","Pavadinimas","Kiekis","Mato vienetas","Kaina be PVM, Eur","Suma be PVM, Eur","Siūlomi produktai"]
["146.","Universalus operacinio lauko apklotų rinkinys"]
["146.1.","Universalus operacinio lauko apklotų rinkinys",1000,"vnt",null,{"$f":"IF(ISBLANK(E1852),\"\", PRODUCT(C1852,E1852))","v":""}]
[null,null,null,null,"Suma be PVM",{"$f":"IF(F1852=\"\",\"\",SUM(F1852:F1852))","v":""},{"$f":"IF(F1852=\"\",\"Neužpildytos visos objektų kainos\",\"\")","v":"Neužpildytos visos objektų kainos"}]
[null,null,null,null,"PVM suma"]
[null,null,null,null,"Suma su PVM",{"$f":"IF(ISBLANK(F1854), \"\", SUM(F1853:F1854))","v":""}]

{"sheet":"Subtiekėjai ir priedai","index":1,"n_rows":100,"n_cols":11,"rows_kept":100,"cut":false,"hidden":false,"merged":[[23,0,23,1],[22,0,22,1],[21,0,21,1],[20,0,20,1],[19,0,19,1],[28,0,28,1],[27,0,27,1],[26,0,26,1],[25,0,25,1],[24,0,24,1],[23,2,23,4],[22,2,22,4],[21,2,21,4],[20,2,20,4],[19,2,19,4],[28,2,28,4],[27,2,27,4],[26,2,26,4],[25,2,25,4],[24,2,24,4],[23,5,23,7],[22,5,22,7],[21,5,21,7],[20,5,20,7],[19,5,19,7],[28,5,28,7],[27,5,27,7],[26,5,26,7],[25,5,25,7],[24,5,24,7],[23,8,23,9],[22,8,22,9],[21,8,21,9],[20,8,20,9],[19,8,19,9],[28,8,28,9],[27,8,27,9],[26,8,26,9],[25,8,25,9],[24,8,24,9],[16,0,16,10],[18,8,18,9],[18,5,18,7],[18,2,18,4],[18,0,18,1],[13,0,13,1],[12,0,12,1],[11,0,11,1],[10,0,10,1],[13,8,13,9],[12,8,12,9],[11,8,11,9],[10,8,10,9],[4,0,4,1],[5,5,5,7],[5,0,5,1],[9,0,9,1],[13,2,13,4],[12,2,12,4],[11,2,11,4],[10,2,10,4],[9,2,9,4],[13,5,13,7],[12,5,12,7],[11,5,11,7],[10,5,10,7],[9,5,9,7],[1,0,2,10],[30,0,30,9],[14,5,14,7],[8,5,8,7],[7,5,7,7],[6,5,6,7],[14,8,14,9],[8,8,8,9],[7,8,7,9],[6,8,6,9],[14,0,14,1],[8,0,8,1],[7,0,7,1],[6,0,6,1],[14,2,14,4],[8,2,8,4],[7,2,7,4],[9,8,9,9],[6,2,6,4],[5,2,5,4],[5,8,5,9],[4,8,4,9],[4,5,4,7],[4,2,4,4],[32,0,32,9],[34,7,34,9],[34,1,34,6],[45,7,45,9],[42,7,42,9],[37,7,37,9],[36,7,36,9],[35,7,35,9],[44,7,44,9],[43,7,43,9],[41,7,41,9],[40,7,40,9],[39,7,39,9],[38,7,38,9],[45,1,45,6],[44,1,44,6],[47,0,47,9],[52,4,52,9],[50,4,50,9],[52,0,52,3],[50,0,50,3],[38,1,38,6],[37,1,37,6],[36,1,36,6],[35,1,35,6],[43,1,43,6],[42,1,42,6],[41,1,41,6],[40,1,40,6],[39,1,39,6]]}
[]
["Ūkio subjektai (įskaitant kvazisubtiekėjus - fiziniai asmenys, kuriuos ketinama įdarbinti pirkimo laimėjimo atveju), kurių pajėgumais tiekėjas remiasi, kad atitiktų keliamus kvalifikacijos reikalavimus:"]
[]
[]
["Pavadinimas*",null,"Kodas, adresas",null,null,"Perduodami įsipareigojimai",null,null,"Perduodamų įsipareigojimų dalis nuo visos pirkimo sutarties (Eur arba %)",null,"Kval. Reikalavimo Nr."]
[]
[]
[]
[]
[]
[]
[]
[]
[]
[]
[]
["Subtiekėjams / subteikėjams / subrangovams numatomos perduoti veiklos (privaloma nurodyti) ir šių ūkio subjektų pavadinimai (jei žinomi):"]
[]
["Pavadinimas",null,"Kodas, adresas",null,null,"Perduodama veikla*",null,null,"Perduodamos veiklos dalis nuo visos pirkimo sutarties (Eur arba %)"]
[]
[]
[]
[]
[]
[]
[]
[]
[]
[]
[]
[]
[]
["Kartu su pasiūlymu pateikiami šie dokumentai:"]
[]
["Nr.","Dokumento  pavadinimas",null,null,null,null,null,"Dokumentas yra konfidencialus? Taip/Ne"]
[1,"Jungtinės veiklos kopija (jei taikoma)",null,null,null,null,null,"-"]
[2,"Europos bendrasis viešųjų pirkimų dokumentas",null,null,null,null,null,"Taip, 4 psl."]
[3,"Subtiekimo sutartis, ketinimų protokolas, preliminarios sutartys ar kiti dokumentai, patvirtinantys, kad laimėjus pirkimą tiekėjui bus prieinami kitų ūkio subjektų ištekliai (jei pasitelkiami kvalifikacijos atitikimui)",null,null,null,null,null,"-"]
[4,"Pasiūlymo atitikimą pirkimo sąlygų techninei specifikacijai pagrindžiantys dokumentai",null,null,null,null,null,"Taip"]
[5,"Prekės pavyzdys",null,null,null,null,null,"-"]
["6.","EC sertifikatai",null,null,null,null,null,"Ne"]
["7.","Direktoriaus įgaliojimas",null,null,null,null,null,"Ne"]
[]
[]
[]
[]
[]
["Pasiūlyme nurodyta Prekės kaina, išskyrus jos sudedamąsias dalis, subtiekėjai, taip pat kita informacija, kuri teisės aktų nustatyta tvarka turi būti skelbiama arba kitokiu būdu viešai prieinama visuomenei, nėra laikoma konfidencialia informacija. Konfidencialią informaciją sudaro, visų pirma, komercinė (gamybinė) paslaptis ir konfidencialieji pasiūlymų aspektai. Informacija, kurią viešai skelbti įpareigoja Lietuvos Respublikos įstatymai, negali būti tiekėjo nurodoma kaip konfidenciali, todėl, tiekėjui nurodžius tokią informaciją kaip konfidencialią, perkančioji organizacija turi teisę ją skelbti. Jei tiekėjas nenurodo konfidencialios informacijos, laikoma, kad konfidencialios informacijos tiekėjo pasiūlyme nėra. Vadovaujantis Informacijos viešinimo Centrinėje viešųjų pirkimų informacinėje sistemoje tvarkos aprašu, patvirtintu Viešųjų pirkimų tarnybos direktoriaus 2017 m. birželio 19 d. įsakymu Nr. 1S-91 „Dėl Informacijos viešinimo Centrinėje viešųjų pirkimų informacinėje sistemoje tvarkos aprašo patvirtinimo“, perkančioji organizacija laimėjusio dalyvio pasiūlymą, išskyrus informaciją, kurią tiekėjas nurodė kaip konfidencialią, paskelbs CVP IS."]
[]
[]
["Tiekėjo arba jo įgalioto asmens pareigų pavadinimas:",null,null,null,"Biuro administratorė"]
[]
["Pasirašančio asmens vardas ir pavardė:",null,null,null,"Indrė Grockė"]
[]
[]
[]
[]
[]
[]
[]
[]
[]
[]
[]
[]
[]
[]
[]
[]
[]
[]
[]
[]
[]
[]
[]
[]
[]
[]
[]
[]
[]
[]
[]
[]
[]
[]
[]
[]
[]
[]
[]
[]
[]
[]
[]
[]
[]
[]
["6885-8 2022-03-03 09:06:06"]